Workbook

Sheet титульник

Sheet 1 день
A1: 1-ый день
A2: для детей от 2 до 7 лет
A4: Меню | B4: Выход | C4: Продукты | D4: Брутто | E4: Нетто | F4: Б | G4: Ж | H4: У | I4: Энергет.ценность
A5: ЗАВТРАК
A6: Каша пшеничная | B6: 250 | C6: Крупа пшеничная | D6: 25 | E6: 25 | F6: 2.50 | G6: 0.55 | H6: 16.35 | I6: 82.50
C7: Молоко | D7: 200 | E7: 200 | F7: 5.60 | G7: 6.40 | H7: 8.40 | I7: 118.00
C8: Сахар | D8: 4 | E8: 4 | F8: - | G8: - | H8: 3.81 | I8: 15.60
C9: Масло сливочное | D9: 6 | E9: 6 | F9: 0.02 | G9: 4.71 | H9: 0.03 | I9: 44.04
F10: =SUM(F6:F9) -> 8.12 | G10: =SUM(G6:G9) -> 11.66 | H10: 28.59 | I10: 260.14
A11: Хлеб с сыром с маслом | B11: 40/6 | C11: Хлеб ржаной (пшеничный) | D11: 40 | E11: 40 | F11: 2.84 | G11: 0.44 | H11: 18.50 | I11: 91.60
C12: Сыр | D12: 6 | E12: 6 | F12: 1.30 | G12: 1.35 | H12: - | I12: 17.35
C13: Масло сливочное | D13: 5 | E13: 5 | F13: 0.01 | G13: 3.14 | H13: 0.02 | I13: 29.36
F14: =SUM(F11:F13) -> 4.15 | G14: =SUM(G11:G13) -> 4.93 | H14: 18.52 | I14: 138.31
A15: Чай сладкий | B15: 200 | C15: Чай | D15: 0.71 | E15: 0.71 | F15: 0.16 | G15: - | H15: 0.02 | I15: -
C16: Сахар | D16: 10 | E16: 10 | F16: - | G16: - | H16: 16.22 | I16: 60.60
F17: =SUM(F15:F16) -> 0.16 | G17: =SUM(G15:G16) -> 0.00 | H17: 16.24 | I17: 60.60
A18: ИТОГО | F18: =F10+F14+F17 -> 12.43 | G18: =G10+G14+G17 -> 16.59 | H18: 63.35 | I18: 459.05
A19: 2-ой ЗАВТРАК
A20: Сок (фрукты) | B20: 200/115 | C20: Сок (фрукты) | D20: 200/115 | E20: 200/115 | F20: - | G20: - | H20: 12.00 | I20: 48.00
A21: ОБЕД
A22: Винегрет | B22: 60 | C22: Капуста | D22: 60 | E22: 48 | F22: 0.86 | G22: 0.04 | H22: 2.26 | I22: 13.00
C23: Свекла | D23: 45 | E23: 36 | F23: 0.54 | G23: - | H23: 3.37 | I23: 15.10
C24: Огурцы соленые | D24: 30.00 | E24: 30.00 | F24: 0.20 | G24: - | H24: 0.35 | I24: 2.33
C25: Зеленый горошек | D25: 50 | E25: 50 | F25: 2.10 | G25: - | H25: 6.35 | I25: 34.50
C26: Морковь | D26: 10 | E26: 8 | F26: 0.08 | G26: - | H26: 0.49 | I26: 2.32
C27: Картофель | D27: 50 | E27: 48 | F27: 0.01 | G27: - | H27: 0.80 | I27: 3.36
C28: Масло растительное | D28: 10 | E28: 10 | F28: - | G28: =3.75/4*10 -> 9.38 | H28: - | I28: =34.92/4*10 -> 87.30
F29: =SUM(F22:F28) -> 3.79 | G29: =SUM(G22:G28) -> 9.42 | H29: 13.62 | I29: 157.91
A30: Суп гороховый | B30: 250 | C30: Горох | D30: 30 | E30: 30 | F30: 5.79 | G30: 0.42 | H30: 5.94 | I30: 90.30
C31: Мясо | D31: 37 | E31: 25.9 | F31: 3.65 | G31: 1.27 | H31: - | I31: 26.12
C32: Картофель | D32: 60 | E32: 42 | F32: 0.84 | G32: 0.16 | H32: 6.84 | I32: 33.60
C33: Лук репчатый | D33: 10 | E33: 8 | F33: 0.11 | G33: - | H33: 0.73 | I33: 3.30
C34: Масло сливочное | D34: 3 | E34: 3 | F34: 0.01 | G34: 2.35 | H34: 0.01 | I34: 22.02
C35: Морковь | D35: 20 | E35: 16 | F35: 0.04 | G35: - | H35: 1.10 | I35: 5.00
F36: =SUM(F30:F35) -> 10.44 | G36: =SUM(G30:G35) -> 4.20 | H36: 14.62 | I36: 180.34
A37: Гуляш, картофельное пюре | B37: 70/150 | C37: Мясо | D37: 69 | E37: 69 | F37: 9.73 | G37: 3.38 | H37: - | I37: 69.58
C38: Томатная паста | D38: 7 | E38: 7 | F38: 0.34 | G38: - | H38: 1.33 | I38: 7.00
C39: Картофель | D39: 200 | E39: 140 | F39: 2.52 | G39: 0.55 | H39: 22.82 | I39: 112.00
C40: Масло сливочное | D40: 5 | E40: 5 | F40: 0.01 | G40: 3.14 | H40: 0.02 | I40: 29.36
C41: Масло растительное | D41: 3 | E41: 3 | F41: - | G41: 2.81 | H41: - | I41: 26.19
C42: Молоко | D42: 50 | E42: 50 | F42: 1.40 | G42: 7.60 | H42: 2.35 | I42: 29.00
C43: Яйцо 1/10 шт. | D43: 4 | E43: 3.48 | F43: 0.64 | G43: 1.03 | H43: 0.01 | I43: 14.50
F44: =SUM(F37:F43) -> 14.64 | G44: =SUM(G37:G43) -> 18.51 | H44: 26.53 | I44: 287.63
A45: Компот | B45: 200 | C45: Сухофрукты | D45: 10 | E45: 10 | F45: 0.44 | G45: - | H45: 0.62 | I45: 27.90
C46: Сахар | D46: 15 | E46: 15 | F46: - | G46: - | H46: 14.30 | I46: 58.50
F47: =SUM(F45:F46) -> 0.44 | G47: =SUM(G45:G46) -> 0.00 | H47: 14.92 | I47: 86.40
A48: Хлеб ржаной (пшеничный) | B48: 40 | C48: Хлеб ржаной (пшеничный) | D48: 40 | E48: 40 | F48: 2.08 | G48: 0.48 | H48: 17.70 | I48: 85.60
A49: ИТОГО | F49: =F29+F36+F44+F47+F48 -> 31.39 | G49: =G29+G36+G44+G47+G48 -> 32.61 | H49: 87.39 | I49: 797.88
A50: ПОЛДНИК
A51: Творог | B51: 70 | C51: Творог | D51: 50 | E51: 50 | F51: 4.25 | G51: 5.00 | H51: 1.75 | I51: 69.00
C52: Сметана | D52: 11 | E52: 11 | F52: =2.1/100*7 -> 0.15 | G52: =28.2/100*7 -> 1.97 | H52: =3.1/100*7 -> 0.22 | I52: =284/100*7 -> 19.88
C53: Сахар | D53: 5 | E53: 5 | F53: - | G53: - | H53: 4.99 | I53: 18.95
F54: =SUM(F51:F51) -> 4.25 | G54: =SUM(G51:G51) -> 5.00 | H54: =SUM(H51:H51) -> 1.75 | I54: =SUM(I51:I51) -> 69.00
A55: Вафли (печенье, пряники) | B55: 20 | C55: Вафли (печенье, пряники) | D55: 20 | E55: 20 | F55: 1.57 | G55: 1.92 | H55: 11.03 | I55: 66.81
F56: =SUM(F55:F55) -> 1.57 | G56: =SUM(G55:G55) -> 1.92 | H56: =SUM(H55:H55) -> 11.03 | I56: =SUM(I55:I55) -> 66.81
A57: Какао с молоком | B57: 200 | C57: Какао | D57: 1.07 | E57: 1.07 | F57: 0.26 | G57: 0.18 | H57: 0.26 | I57: 4.07
C58: Молоко | D58: 100 | E58: 100 | F58: 2.80 | G58: 3.20 | H58: 4.70 | I58: 59.00
C59: Сахар | D59: 12 | E59: 12 | F59: - | G59: - | H59: 11.40 | I59: 46.80
F60: =SUM(F57:F59) -> 3.06 | G60: =SUM(G57:G59) -> 3.38 | H60: 16.36 | I60: 109.87
A61: ИТОГО | F61: =F52+F56+F60+F54 -> 9.03 | G61: =G52+G56+G60+G54 -> 12.27 | H61: 29.36 | I61: 265.56
A62: ИТОГО ЗА ДЕНЬ | F62: =SUM(F18+F49+F61,F20) -> 52.85 | G62: =SUM(G18+G49+G61,G20) -> 61.47 | H62: =SUM(H18+H49+H61,H20) -> 192.10 | I62: =SUM(I18+I49+I61,I20) -> 1570.49

Sheet 2 день
A1: 2-ой день
A2: для детей от 2 до 7 лет
A4: Меню | B4: Выход | C4: Продукты | D4: Брутто | E4: Нетто | F4: Б | G4: Ж | H4: У | I4: Энергет.ценность
A5: ЗАВТРАК
A6: Каша кукурузная | B6: 150 | C6: Крупа кукурузы | D6: 25 | E6: 25 | F6: 1.75 | G6: 0.25 | H6: 17.85 | I6: 82.50
C7: Молоко | D7: 200 | E7: 200 | F7: 5.60 | G7: 6.40 | H7: 9.40 | I7: 118.00
C8: Сахар | D8: 4 | E8: 4 | F8: - | G8: - | H8: 3.82 | I8: 15.60
C9: Масло сливочное | D9: 4 | E9: 4 | F9: 0.01 | G9: 3.14 | H9: 0.02 | I9: 29.36
F10: =SUM(F6:F9) -> 7.36 | G10: =SUM(G6:G9) -> 9.79 | H10: 31.09 | I10: 245.46
A11: Хлеб с сыром с маслом | B11: 40/6 | C11: Хлеб ржаной (пшеничный) | D11: 40 | E11: 40 | F11: 2.84 | G11: 0.44 | H11: 18.50 | I11: 91.60
C12: Сыр | D12: 6 | E12: 6 | F12: 1.30 | G12: 1.35 | H12: - | I12: 17.35
C13: Масло сливочное | D13: 5 | E13: 5 | F13: 0.01 | G13: 3.14 | H13: 0.02 | I13: 29.36
F14: =SUM(F11:F13) -> 4.15 | G14: =SUM(G11:G13) -> 4.93 | H14: 18.52 | I14: 138.31
A15: Чай сладкий | B15: 200 | C15: Чай | D15: 0.6 | E15: 0.6 | F15: 0.16 | G15: - | H15: 0.02 | I15: -
C17: Сахар | D17: 15 | E17: 15 | F17: - | G17: - | H17: 14.30 | I17: 58.50
F18: =SUM(F15:F17) -> 0.16 | G18: =SUM(G15:G17) -> 0.00 | H18: 14.32 | I18: 58.50
A19: ИТОГО | F19: =F10+F14+F18 -> 11.67 | G19: =G10+G14+G18 -> 14.72 | H19: 63.93 | I19: 442.27
A20: 2-ой ЗАВТРАК
A21: Сок (фрукты) | B21: 200/115 | C21: Сок (фрукты) | D21: 200/115 | E21: 200/115 | F21: - | G21: - | H21: 12.00 | I21: 48.00
A22: ОБЕД
A24: Щи | B24: 200 | C24: Капуста | D24: 50 | E24: 40 | F24: 0.72 | G24: 0.04 | H24: 1.88 | I24: 10.88
C25: Мясо | D25: 37 | E25: 25.9 | F25: 3.65 | G25: 1.27 | H25: - | I25: 26.12
C26: Картофель | D26: 60 | E26: 42 | F26: 0.84 | G26: 0.16 | H26: 6.84 | I26: 33.60
C27: Лук репчатый | D27: 10 | E27: 8 | F27: 0.11 | G27: - | H27: 0.73 | I27: 3.30
C28: Масло сливочное | D28: 3 | E28: 3 | F28: 0.01 | G28: 2.35 | H28: 0.01 | I28: 22.02
C29: Морковь | D29: 10 | E29: 8 | F29: 0.02 | G29: - | H29: 0.58 | I29: 2.70
F30: =SUM(F24:F29) -> 5.35 | G30: =SUM(G24:G29) -> 3.82 | H30: 10.04 | I30: 98.62
A31: Макароны с рыбой | B31: 150/80 | C31: Макароны | D31: 35 | E31: 35 | F31: 3.25 | G31: 0.35 | H31: 34.36 | I31: 111.68
C32: Рыба | D32: 120 | E32: 100 | F32: 7.90 | G32: 2.80 | H32: - | I32: 58.00
F33: =SUM(F31:F32) -> 11.15 | G33: =SUM(G31:G32) -> 3.15 | H33: =SUM(H31:H32) -> 34.36 | I33: =SUM(I31:I32) -> 169.68
A34: Компот | B34: 200 | C34: Сухофрукты | D34: 10 | E34: 10 | F34: 0.44 | G34: - | H34: 0.62 | I34: 27.90
C35: Сахар | D35: 15 | E35: 15 | F35: - | G35: - | H35: 14.30 | I35: 58.50
F36: =SUM(F34:F35) -> 0.44 | G36: =SUM(G34:G35) -> 0.00 | H36: 14.92 | I36: 86.40
A37: Хлеб ржаной (пшеничный) | B37: 40 | C37: Хлеб ржаной (пшеничный) | D37: 40 | E37: 40 | F37: 2.08 | G37: 0.48 | H37: 17.70 | I37: 85.60
A38: ИТОГО | F38: =F23+F30+F33+F36+F37 -> 19.02 | G38: =G23+G30+G33+G36+G37 -> 7.45 | H38: =H23+H30+H33+H36+H37 -> 77.02 | I38: =I23+I30+I33+I36+I37 -> 440.30
A39: ПОЛДНИК
A40: творожная запеканка | B40: 120 | C40: Молоко | D40: 20 | E40: 20 | F40: 0.56 | G40: 0.64 | H40: 0.94 | I40: 11.60
C41: Яйцо 1/5шт. | D41: 8 | E41: 6.96 | F41: 1.28 | G41: 2.06 | H41: 0.02 | I41: 23.00
C42: Сахар | D42: 3 | E42: 3 | F42: - | G42: - | H42: 2.86 | I42: 11.70
C43: Творог | D43: 100 | E43: 100 | F43: 12.00 | G43: 8.50 | H43: 3.30 | I43: 141.00
C44: Масло сливочное | D44: 4 | E44: 4 | F44: 0.01 | G44: 3.14 | H44: 0.02 | I44: 29.36
C45: Сахар | D45: 3 | E45: 3 | F45: - | G45: - | H45: 2.96 | I45: 11.70
C46: Масло растительное | D46: 3 | E46: 3 | F46: - | G46: 2.81 | H46: - | I46: 26.19
F47: =SUM(F40:F46) -> 13.85 | G47: =SUM(G40:G46) -> 17.15 | H47: =SUM(H40:H46) -> 10.10 | I47: =SUM(I40:I46) -> 254.55
A48: Яблоко | B48: 100 | C48: Яблоко | D48: 100 | E48: 80 | F48: 1.50 | G48: 0.10 | H48: 21.80 | I48: 89.00
F49: =SUM(F48:F48) -> 1.50 | G49: =SUM(G48:G48) -> 0.10 | H49: =SUM(H48:H48) -> 21.80 | I49: =SUM(I48:I48) -> 89.00
A50: Кисель | B50: 200 | C50: Кисель | D50: 1.07 | E50: 1.07 | F50: 0.26 | G50: 0.18 | H50: 0.26 | I50: 4.07
F53: =SUM(F50:F52) -> 0.26 | G53: =SUM(G50:G52) -> 0.18 | H53: =SUM(H50:H52) -> 0.26 | I53: =SUM(I50:I52) -> 4.07
A54: ИТОГО | F54: =F47+F53+F49 -> 15.61 | G54: =G47+G53+G49 -> 17.43 | H54: =H47+H53+H49 -> 32.16 | I54: =I47+I53+I49 -> 347.62
A55: ИТОГО ЗА ДЕНЬ | F55: =SUM(F19+F38+F54,F21) -> 46.30 | G55: =SUM(G19+G38+G54,G21) -> 39.60 | H55: =SUM(H19+H38+H54,H21) -> 185.11 | I55: =SUM(I19+I38+I54,I21) -> 1278.19

Sheet 3 день
A1: 3-ий день
A2: для детей от 2 до 7 лет
A4: Меню | B4: Выход | C4: Продукты | D4: Брутто | E4: Нетто | F4: Б | G4: Ж | H4: У | I4: Энергет.ценность
A5: ЗАВТРАК
A6: Каша дружба | B6: 200 | C6: Крупа рисовая | D6: 15 | E6: 15 | F6: 0.94 | G6: 0.13 | H6: 10.66 | I6: 2.25
C7: Крупа пшенная | D7: 15 | E7: 15 | F7: 2.30 | G7: 0.66 | H7: 13.30 | I7: 69.60
C8: Молоко | D8: 130 | E8: 130 | F8: 3.64 | G8: 4.16 | H8: 6.11 | I8: 76.70
C9: Сахар | D9: 5 | E9: 5 | F9: - | G9: - | H9: 4.99 | I9: 18.95
C10: Масло сливочное | D10: 4 | E10: 4 | F10: 0.01 | G10: 3.14 | H10: 0.02 | I10: 29.36
F11: =SUM(F6:F10) -> 6.89 | G11: =SUM(G6:G10) -> 8.09 | H11: 35.08 | I11: 196.86
A12: Хлеб с сыром с маслом | B12: 40/6 | C12: Хлеб ржаной (пшеничный) | D12: 40 | E12: 40 | F12: 2.84 | G12: 0.44 | H12: 18.50 | I12: 91.60
C13: Сыр | D13: 5 | E13: 5 | F13: 1.30 | G13: 1.35 | H13: - | I13: 17.35
C14: Масло сливочное | D14: 5 | E14: 5 | F14: 0.01 | G14: 3.14 | H14: 0.02 | I14: 29.36
F15: =SUM(F12:F14) -> 4.15 | G15: =SUM(G12:G14) -> 4.93 | H15: 18.52 | I15: 138.31
A16: Чай сладкий | B16: 200 | C16: Чай | D16: 0.6 | E16: 0.6 | F16: 0.16 | G16: - | H16: 0.02 | I16: -
C17: Сахар | D17: 15 | E17: 15 | F17: - | G17: - | H17: 14.30 | I17: 58.50
F18: =SUM(F16:F17) -> 0.16 | G18: =SUM(G16:G17) -> 0.00 | H18: 14.32 | I18: 58.50
A19: ИТОГО | F19: =F11+F15+F18 -> 11.20 | G19: =G11+G15+G18 -> 13.02 | H19: 67.92 | I19: 393.67
A20: 2-ой ЗАВТРАК
A21: Сок (фрукты) | B21: 200/115 | C21: Сок (фрукты) | D21: 200/115 | E21: 200/115 | F21: - | G21: - | H21: 12.00 | I21: 48.00
A22: ОБЕД
A23: Салат из зелёного горошка | B23: 60 | C23: Зеленый горошек | D23: 50 | E23: 50 | F23: 2.10 | G23: - | H23: 6.35 | I23: 34.50
C24: Огурцы соленые | D24: 30.00 | E24: 30.00 | F24: 0.20 | G24: - | H24: 0.35 | I24: 2.33
C25: Лук репчатый | D25: 10 | E25: 8 | F25: 0.11 | G25: - | H25: 0.73 | I25: 3.30
C26: Масло растительное | D26: 4 | E26: 4 | F26: - | G26: 3.75 | H26: - | I26: 34.92
F27: =SUM(F23:F26) -> 2.41 | G27: =SUM(G23:G26) -> 3.75 | H27: =SUM(H23:H26) -> 7.43 | I27: =SUM(I23:I26) -> 75.05
A28: Уха | B28: 200 | C28: Рыба | D28: 100 | E28: 48 | F28: 38.40 | G28: 0.72 | H28: - | I28: 83.20
C29: Картофель | D29: 60 | E29: 42 | F29: 0.84 | G29: 0.16 | H29: 6.84 | I29: 33.60
C30: Лук репчатый | D30: 10 | E30: 8 | F30: 0.11 | G30: - | H30: 0.73 | I30: 3.30
C31: Рис | D31: 10 | E31: 10 | F31: 0.63 | G31: 0.09 | H31: 7.11 | I31: 32.60
C32: Яйцо 1/8 шт. | D32: 5 | E32: 4.25 | F32: 0.62 | G32: 1.24 | H32: 0.02 | I32: 14.11
C33: Масло сливочное | D33: 3 | E33: 3 | F33: 0.01 | G33: 2.35 | H33: 0.01 | I33: 22.02
C34: Морковь | D34: 10 | E34: 8 | F34: 0.02 | G34: - | H34: 0.58 | I34: 2.70
F35: =SUM(F28:F34) -> 40.63 | G35: =SUM(G28:G34) -> 4.56 | H35: =SUM(H28:H34) -> 15.29 | I35: =SUM(I28:I34) -> 191.53
A36: Тушеная капуста с мясом | B36: 200 | C36: Капуста | D36: 260 | E36: 210 | F36: 3.78 | G36: 0.21 | H36: 9.87 | I36: 56.7
C37: Мясо | D37: 69 | E37: 69 | F37: 9.73 | G37: 3.38 | H37: - | I37: 69.59
C38: Томат | D38: 7 | E38: 7 | F38: 0.34 | G38: - | H38: 1.33 | I38: 7.00
C39: Мука пшеничная | D39: 7 | E39: 7 | F39: 0.70 | G39: 0.09 | H39: 4.97 | I39: 23.40
C40: Масло сливочное | D40: 6 | E40: 6 | F40: 0.02 | G40: 4.71 | H40: 0.03 | I40: 44.04
C41: Масло растительное | D41: 6 | E41: 6 | F41: - | G41: 5.63 | H41: - | I41: 52.38
C42: Лук репчатый | D42: 13 | E42: 10 | F42: 0.14 | G42: - | H42: 0.91 | I42: 4.10
C43: Сахар | D43: 2 | E43: 2 | F43: - | G43: - | H43: 1.99 | I43: 7.58
C44: Морковь | D44: 20 | E44: 16 | F44: 0.05 | G44: 0.02 | H44: 1.15 | I44: 5.40
F45: =SUM(F36:F44) -> 14.76 | G45: =SUM(G36:G44) -> 14.04 | H45: 20.25 | I45: 270.19
A46: Компот | B46: 200 | C46: Сухофрукты | D46: 10 | E46: 10 | F46: 0.44 | G46: - | H46: 0.62 | I46: 27.90
C47: Сахар | D47: 15 | E47: 15 | F47: - | G47: - | H47: 14.30 | I47: 58.50
F48: =SUM(F46:F47) -> 0.44 | G48: =SUM(G46:G47) -> 0.00 | H48: 14.92 | I48: 86.40
A49: Хлеб ржаной (пшеничный) | B49: 40 | C49: Хлеб ржаной (пшеничный) | D49: 40 | E49: 40 | F49: 2.08 | G49: 0.48 | H49: 17.70 | I49: 85.60
A50: ИТОГО | F50: =F27+F35+F45+F48+F49 -> 60.32 | G50: =G27+G35+G45+G48+G49 -> 22.83 | H50: =H27+H35+H45+H48+H49 -> 75.59 | I50: =I27+I35+I45+I48+I49 -> 708.77
A51: ПОЛДНИК
A52: Яйцо крутое | B52: 60 | C52: Яйцо | D52: 60 | E52: 34.8 | F52: 5.08 | G52: 10.30 | H52: 0.17 | I52: 115.00
F53: =SUM(F52:F52) -> 5.08 | G53: =SUM(G52:G52) -> 10.30 | H53: =SUM(H52:H52) -> 0.17 | I53: =SUM(I52:I52) -> 115.00
A55: Фрукты свежие | B55: 100 | C55: Груша | D55: 100 | E55: 80 | F55: 1.50 | G55: 0.10 | H55: 21.80 | I55: 89.00
A57: Чай с молоком | B57: 200 | C57: Чай | D57: 0.3 | E57: 0.3 | F57: 0.16 | G57: - | H57: 0.02
C58: Сахар | D58: 15 | E58: 15 | F58: - | G58: - | H58: 14.30 | I58: 58.50
F59: =SUM(F57:F58) -> 0.16 | G59: =SUM(G57:G58) -> 0.00 | H59: =SUM(H57:H58) -> 14.32 | I59: =SUM(I57:I58) -> 58.50
A60: Вафли (печенье, пряники) | B60: 20 | C60: Вафли (печенье, пряники) | D60: 20 | E60: 20 | F60: 1.57 | G60: 1.92 | H60: 11.03 | I60: 66.81
F61: =SUM(F60) -> 1.57 | G61: =SUM(G60) -> 1.92 | H61: 11.03 | I61: 66.81
A62: ИТОГО | F62: =F54+F59+F55+F61 -> 3.23 | G62: =G54+G59+G55+G61 -> 2.02 | H62: =H54+H59+H55+H61 -> 47.15 | I62: =I54+I59+I55+I61 -> 214.31
A63: ИТОГО ЗА ДЕНЬ | F63: =SUM(F19+F50+F62,F21) -> 74.75 | G63: =SUM(G19+G50+G62,G21) -> 37.87 | H63: =SUM(H19+H50+H62,H21) -> 202.66 | I63: =SUM(I19+I50+I62,I21) -> 1364.75

Sheet 4 день
A1: 4-ый день
A2: для детей от 2 до 7 лет
A4: Меню | B4: Выход | C4: Продукты | D4: Брутто | E4: Нетто | F4: Б | G4: Ж | H4: У | I4: Энергет.ценность
A5: ЗАВТРАК
A6: Каша пшеничная | B6: 200 | C6: Крупа пшеничная | D6: 30 | E6: 30 | F6: 2.32 | G6: 0.25 | H6: 17.42 | I6: 79.25
C7: Молоко | D7: 200 | E7: 200 | F7: 5.60 | G7: 6.40 | H7: 5.40 | I7: 118.00
C8: Сахар | D8: 5 | E8: 5 | F8: - | G8: - | H8: 4.99 | I8: 18.95
C9: Масло сливочное | D9: 4 | E9: 4 | F9: 0.01 | G9: 3.14 | H9: 0.02 | I9: 29.36
F10: =SUM(F6:F9) -> 7.93 | G10: =SUM(G6:G9) -> 9.79 | H10: 27.83 | I10: 245.56
A11: Хлеб с сыром с маслом | B11: 40/6 | C11: Хлеб ржаной (пшеничный) | D11: 40 | E11: 40 | F11: 2.84 | G11: 0.44 | H11: 18.50 | I11: 91.60
C12: Сыр | D12: 5 | E12: 5 | F12: 1.30 | G12: 1.35 | H12: - | I12: 17.35
C13: Масло сливочное | D13: 5 | E13: 5 | F13: 0.01 | G13: 3.14 | H13: 0.02 | I13: 29.36
F14: =SUM(F11:F13) -> 4.15 | G14: =SUM(G11:G13) -> 4.93 | H14: 18.52 | I14: 138.31
A15: Чай сладкий | B15: 200 | C15: Чай | D15: 0.6 | E15: 0.6 | F15: 0.16 | G15: - | H15: 0.02 | I15: -
C16: Сахар | D16: 15 | E16: 15 | F16: - | G16: - | H16: 14.30 | I16: 58.50
F17: =SUM(F15:F16) -> 0.16 | G17: =SUM(G15:G16) -> 0.00 | H17: 14.32 | I17: 58.50
A18: ИТОГО | F18: =F10+F14+F17 -> 12.24 | G18: =G10+G14+G17 -> 14.72 | H18: 60.67 | I18: 442.37
A19: 2-ой ЗАВТРАК
A20: Сок (фрукты) | B20: 200/115 | C20: Сок (фрукты) | D20: 200/115 | E20: 200/115 | F20: - | G20: - | H20: 12.00 | I20: 48.00
A21: ОБЕД
A22: Салат из варёный свёклы | B22: 60 | C22: свёкла | D22: 100 | E22: 100 | F22: 0.90 | G22: - | H22: 4.80 | I22: 23.20
C23: Сахар | D23: 2 | E23: 2 | F23: - | G23: - | H23: 2.00 | I23: 7.60
C24: Масло растительное | D24: 10 | E24: 10 | F24: - | G24: =3.75*2.5 -> 9.38 | H24: - | I24: =2.5*34.92 -> 87.30
F25: =SUM(F22:F24) -> 0.90 | G25: =SUM(G22:G24) -> 9.38 | H25: =SUM(H22:H24) -> 6.80 | I25: =SUM(I22:I24) -> 118.10
A26: Борщ | B26: 200 | C26: Капуста | D26: 100 | E26: 80 | F26: 1.44 | G26: 0.08 | H26: =2*1.88 -> 3.76 | I26: =2*10.88 -> 21.76
C27: Мясо | D27: 37 | E27: 25.9 | F27: 3.65 | G27: 1.27 | H27: - | I27: 26.12
C28: Картофель | D28: 200 | E28: 180 | F28: =4*0.63 -> 2.52 | G28: =4*0.14 -> 0.56 | H28: =4*5.71 -> 22.84 | I28: =4*28 -> 112.00
C29: Лук репчатый | D29: 10 | E29: 8 | F29: 0.11 | G29: - | H29: 0.73 | I29: 3.30
C30: Масло сливочное | D30: 3 | E30: 3 | F30: 0.01 | G30: 2.35 | H30: 0.01 | I30: 22.02
C31: Морковь | D31: 10 | E31: 8 | F31: 0.02 | G31: - | H31: 0.58 | I31: 2.70
C32: Свекла | D32: 45 | E32: 36 | F32: 0.54 | G32: - | H32: 3.37 | I32: 15.10
F33: =SUM(F26:F32) -> 8.29 | G33: =SUM(G26:G32) -> 4.26 | H33: =SUM(H26:H32) -> 31.29 | I33: =SUM(I26:I32) -> 203.00
A34: Гречка с мясом | B34: 200 | C34: Гречка | D34: 30 | E34: 30 | F34: 3.15 | G34: 0.69 | H34: 19.08 | I34: 97.5
C35: Мясо | D35: 69 | E35: 69 | F35: 9.73 | G35: 3.38 | H35: - | I35: 69.59
C36: Масло сливочное | D36: 6 | E36: 6 | F36: 0.02 | G36: 4.71 | H36: 0.03 | I36: 44.04
C37: Масло растительное | D37: 6 | E37: 6 | F37: - | G37: 5.63 | H37: - | I37: 52.38
C38: Лук репчатый | D38: 13 | E38: 10 | F38: 0.14 | G38: - | H38: 0.91 | I38: 4.10
C39: Морковь | D39: 20 | E39: 16 | F39: 0.05 | G39: 0.02 | H39: 1.15 | I39: 5.40
F40: =SUM(F34:F39) -> 13.09 | G40: =SUM(G34:G39) -> 14.43 | H40: =SUM(H34:H39) -> 21.17 | I40: =SUM(I34:I39) -> 273.01
A41: Компот | B41: 200 | C41: Сухофрукты | D41: 10 | E41: 10 | F41: 0.44 | G41: - | H41: 0.62 | I41: 27.90
C42: Сахар | D42: 15 | E42: 15 | F42: - | G42: - | H42: 14.30 | I42: 58.50
F43: =SUM(F41:F42) -> 0.44 | G43: =SUM(G41:G42) -> 0.00 | H43: 14.92 | I43: 86.40
A44: Хлеб ржаной (пшеничный) | B44: 40 | C44: Хлеб ржаной (пшеничный) | D44: 40 | E44: 40 | F44: 2.08 | G44: 0.48 | H44: 17.70 | I44: 85.60
A45: ИТОГО | F45: =F25+F33+F40+F43+F44 -> 24.80 | G45: =G25+G33+G40+G43+G44 -> 28.55 | H45: =H25+H33+H40+H43+H44 -> 91.88 | I45: =I25+I33+I40+I43+I44 -> 766.11
A46: ПОЛДНИК
A47: Яйцо крутое | B47: 60 | C47: Яйцо | D47: 60 | E47: 34.8 | F47: 5.08 | G47: 10.30 | H47: 0.17 | I47: 115.00
F48: =SUM(F47:F47) -> 5.08 | G48: =SUM(G47:G47) -> 10.30 | H48: =SUM(H47:H47) -> 0.17 | I48: =SUM(I47:I47) -> 115.00
A49: Хлеб ржаной (пшеничный) | B49: 40 | C49: Хлеб ржаной (пшеничный) | D49: 30 | E49: 30 | F49: 2.08 | G49: 0.48 | H49: 17.70 | I49: 85.60
F50: =SUM(F49:F49) -> 2.08 | G50: =SUM(G49:G49) -> 0.48 | H50: =SUM(H49:H49) -> 17.70 | I50: =SUM(I49:I49) -> 85.60
A51: Вафли (печенье, пряники) | B51: 20 | C51: Вафли (печенье, пряники) | D51: 20 | E51: 20 | F51: 1.57 | G51: 1.92 | H51: 11.03 | I51: 66.81
F52: =SUM(F51:F51) -> 1.57 | G52: =SUM(G51:G51) -> 1.92 | H52: =SUM(H51:H51) -> 11.03 | I52: =SUM(I51:I51) -> 66.81
A53: Какао с молоком | B53: 200 | C53: Какао | D53: 1.07 | E53: 1.07 | F53: 0.26 | G53: 0.18 | H53: 0.26 | I53: 4.07
C54: Молоко | D54: 100 | E54: 100 | F54: 2.80 | G54: 3.20 | H54: 4.70 | I54: 59.00
C55: Сахар | D55: 12 | E55: 12 | F55: - | G55: - | H55: 11.40 | I55: 46.80
F56: =SUM(F53:F55) -> 3.06 | G56: =SUM(G53:G55) -> 3.38 | H56: =SUM(H53:H55) -> 16.36 | I56: =SUM(I53:I55) -> 109.87
A57: ИТОГО | F57: =F48+F56+F50+F52 -> 11.79 | G57: 16.08 | H57: =H48+H56+H50+H52 -> 45.26 | I57: =I48+I56+I50+I52 -> 377.28
A58: ИТОГО ЗА ДЕНЬ | F58: =SUM(F18+F45+F57,F20) -> 48.83 | G58: =SUM(G18+G45+G57,G20) -> 59.35 | H58: =SUM(H18+H45+H57,H20) -> 209.81 | I58: =SUM(I18+I45+I57,I20) -> 1633.76

Sheet 5 день
A1: 5-ый день
A2: для детей от 2 до 7 лет
A4: Меню | B4: Выход | C4: Продукты | D4: Брутто | E4: Нетто | F4: Б | G4: Ж | H4: У | I4: Энергет.ценность
A5: ЗАВТРАК
A6: Каша геркулесовая | B6: 200 | C6: Крупа геркулес | D6: 30 | E6: 30 | F6: 2.32 | G6: 0.25 | H6: 17.42 | I6: 79.25
C7: Молоко | D7: 100 | E7: 100 | F7: 2.80 | G7: 3.20 | H7: 4.70 | I7: 59.00
C8: Сахар | D8: 5 | E8: 5 | F8: - | G8: - | H8: 4.99 | I8: 18.95
C9: Масло сливочное | D9: 4 | E9: 4 | F9: 0.01 | G9: 3.14 | H9: 0.02 | I9: 29.36
F10: =SUM(F6:F9) -> 5.13 | G10: =SUM(G6:G9) -> 6.59 | H10: 27.13 | I10: 186.56
A11: Хлеб с сыром с маслом | B11: 40/6 | C11: хлеб ржаной (пшеничный) | D11: 40 | E11: 40 | F11: 2.84 | G11: 0.44 | H11: 18.50 | I11: 91.60
C12: Сыр | D12: 5 | E12: 5 | F12: 1.30 | G12: 1.35 | H12: - | I12: 17.35
C13: Масло сливочное | D13: 5 | E13: 5 | F13: 0.01 | G13: 3.14 | H13: 0.02 | I13: 29.36
F14: =SUM(F11:F13) -> 4.15 | G14: =SUM(G11:G13) -> 4.93 | H14: 18.52 | I14: 138.31
A15: Чай сладкий | B15: 200 | C15: Чай | D15: 0.6 | E15: 0.6 | F15: 0.16 | G15: - | H15: 0.02 | I15: -
C16: Сахар | D16: 15 | E16: 15 | F16: - | G16: - | H16: 14.30 | I16: 58.50
F17: =SUM(F15:F16) -> 0.16 | G17: =SUM(G15:G16) -> 0.00 | H17: 14.32 | I17: 58.50
A18: ИТОГО | F18: =F10+F14+F17 -> 9.44 | G18: =G10+G14+G17 -> 11.52 | H18: 59.97 | I18: 383.37
A19: 2-ой ЗАВТРАК
A20: Сок (фрукты) | B20: 200/115 | C20: Сок (фрукты) | D20: 200/115 | E20: 200/115 | F20: - | G20: - | H20: 12.00 | I20: 48.00
A21: ОБЕД
A22: Винегрет | B22: 60 | C22: Капуста | D22: 60 | E22: 48 | F22: 0.86 | G22: 0.04 | H22: 2.26 | I22: 13.00
C23: Свекла | D23: 45 | E23: 36 | F23: 0.54 | G23: - | H23: 3.37 | I23: 15.10
C24: Огурцы соленые | D24: 30.00 | E24: 30.00 | F24: 0.20 | G24: - | H24: 0.35 | I24: 2.33
C25: Зеленый горошек | D25: 50 | E25: 50 | F25: 2.10 | G25: - | H25: 6.35 | I25: 34.50
C26: Морковь | D26: 10 | E26: 8 | F26: 0.08 | G26: - | H26: 0.49 | I26: 2.32
C27: Картофель | D27: 50 | E27: 48 | F27: 0.01 | G27: - | H27: 0.80 | I27: 3.36
C28: Масло растительное | D28: 10 | E28: 10 | F28: - | G28: =3.75/4*10 -> 9.38 | H28: - | I28: =34.92/4*10 -> 87.30
F29: =SUM(F22:F28) -> 3.79 | G29: =SUM(G22:G28) -> 9.42 | H29: =SUM(H22:H28) -> 13.62 | I29: =SUM(I22:I28) -> 157.91
A30: Суп рассольник | B30: 200 | C30: Мясо | D30: 37 | E30: 25.9 | F30: 3.65 | G30: 1.27 | H30: - | I30: 26.12
C31: Картофель | D31: 200 | E31: 180 | F31: =4*0.63 -> 2.52 | G31: =4*0.14 -> 0.56 | H31: =4*5.71 -> 22.84 | I31: =4*28 -> 112.00
C32: Лук репчатый | D32: 10 | E32: 8 | F32: 0.11 | G32: - | H32: 0.73 | I32: 3.30
C33: Огурцы соленые | D33: 15 | E33: 15 | F33: 0.10 | G33: - | H33: 0.18 | I33: 1.16
C34: Крупа гречневая | D34: 15 | E34: 15 | F34: 1.10 | G34: 0.16 | H34: 10.42 | I34: 48.75
C35: Масло сливочное | D35: 3 | E35: 3 | F35: 0.01 | G35: 2.35 | H35: 0.01 | I35: 22.02
C36: Морковь | D36: 15 | E36: 12 | F36: 0.03 | G36: - | H36: 0.87 | I36: 4.10
F37: =SUM(F30:F36) -> 7.52 | G37: =SUM(G30:G36) -> 4.34 | H37: 35.05 | I37: 217.45
A38: Плов с мясом | B38: 200 | C38: Рис | D38: 35 | E38: 35 | F38: 2.45 | G38: 0.35 | H38: 24.99 | I38: 115.5
C39: Мясо | D39: 69 | E39: 69 | F39: 9.73 | G39: 3.38 | H39: - | I39: 69.59
C40: Масло сливочное | D40: 6 | E40: 6 | F40: 0.02 | G40: 4.71 | H40: 0.03 | I40: 44.04
C41: Масло растительное | D41: 10 | E41: 10 | F41: - | G41: =3.75/4*10 -> 9.38 | H41: - | I41: =34.92/4*10 -> 87.30
C42: Лук репчатый | D42: 13 | E42: 10 | F42: 0.14 | G42: - | H42: 0.91 | I42: 4.10
C43: Морковь | D43: 20 | E43: 16 | F43: 0.05 | G43: 0.02 | H43: 1.15 | I43: 5.40
F44: =SUM(F38:F43) -> 12.39 | G44: =SUM(G38:G43) -> 17.84 | H44: =SUM(H38:H43) -> 27.08 | I44: =SUM(I38:I43) -> 325.93
A45: Компот | B45: 200 | C45: Сухофрукты | D45: 10 | E45: 10 | F45: 0.44 | G45: - | H45: 0.62 | I45: 27.90
C46: Сахар | D46: 15 | E46: 15 | F46: - | G46: - | H46: 14.30 | I46: 58.50
F47: =SUM(F45:F46) -> 0.44 | G47: =SUM(G45:G46) -> 0.00 | H47: 14.92 | I47: 86.40
A48: Хлеб ржаной (пшеничный) | B48: 40 | C48: Хлеб ржаной (пшеничный) | D48: 40 | E48: 40 | F48: 2.08 | G48: 0.48 | H48: 17.70 | I48: 85.60
A49: ИТОГО | F49: =F29+F37+F44+F47+F48 -> 26.22 | G49: =G29+G37+G44+G47+G48 -> 32.07 | H49: =H29+H37+H44+H47+H48 -> 108.37 | I49: =I29+I37+I44+I47+I48 -> 873.29
A50: ПОЛДНИК
A51: Суп молочный с макаронами | B51: 150 | C51: макароны | D51: 12 | E51: 12 | F51: 1.57 | G51: 0.35 | H51: 8.54 | I51: 48.75
C52: Масло сливочное | D52: 6 | E52: 6 | F52: 0.02 | G52: 4.71 | H52: 0.03 | I52: 44.04
C53: Молоко | D53: 150 | E53: 150 | F53: 4.20 | G53: 4.80 | H53: 7.05 | I53: 88.50
F54: =SUM(F51:F53) -> 5.79 | G54: =SUM(G51:G53) -> 9.86 | H54: 15.62 | I54: 181.29
A55: Сок | B55: 200 | C55: Сок | D55: 200 | E55: 200 | F55: - | G55: - | H55: 12.00 | I55: 48.00
F56: =SUM(F55) -> 0.00 | G56: =SUM(G55) -> 0.00 | H56: 12.00 | I56: 48.00
A57: Хлеб ржаной (пшеничный) | B57: 30 | C57: Хлеб ржаной (пшеничный) | D57: 30 | E57: 30 | F57: 2.08 | G57: 0.48 | H57: 17.70 | I57: 85.60
F58: =SUM(F57:F57) -> 2.08 | G58: =SUM(G57:G57) -> 0.48 | H58: =SUM(H57:H57) -> 17.70 | I58: =SUM(I57:I57) -> 85.60
A60: ИТОГО | F60: =F54+F58+F59+F56 -> 7.87 | G60: =G54+G58+G59+G56 -> 10.34 | H60: =H54+H58+H59+H56 -> 45.32 | I60: =I54+I58+I59+I56 -> 314.89
A61: ИТОГО ЗА ДЕНЬ | F61: =SUM(F18+F49+F60,F20) -> 43.53 | G61: =SUM(G18+G49+G60,G20) -> 53.93 | H61: =SUM(H18+H49+H60,H20) -> 225.66 | I61: =SUM(I18+I49+I60,I20) -> 1619.55

Sheet 6 день
A1: 6-ой день
A2: для детей от 2 до 7 лет
A4: Меню | B4: Выход | C4: Продукты | D4: Брутто | E4: Нетто | F4: Б | G4: Ж | H4: У | I4: Энергет.ценность
A5: ЗАВТРАК
A6: Каша манная | B6: 250 | C6: Манка | D6: 20 | E6: 20 | F6: =1.42/3*4 -> 1.89 | G6: =10.51/3*4 -> 14.01 | H6: - | I6: =49.95/3*4 -> 66.60
C7: Молоко | D7: 200 | E7: 200 | F7: 5.60 | G7: 6.40 | H7: 5.40 | I7: 118.00
C8: Сахар | D8: 5 | E8: 5 | F8: - | G8: - | H8: =2.5*1.91 -> 4.78 | I8: =2.5*7.8 -> 19.50
C9: Масло сливочное | D9: 5 | E9: 5 | F9: 0.02 | G9: 3.92 | H9: 0.02 | I9: 36.70
F10: =SUM(F6:F9) -> 7.51 | G10: =SUM(G6:G9) -> 24.33 | H10: 10.20 | I10: 240.80
A11: Хлеб с сыром с маслом | B11: 40/6 | C11: Хлеб ржаной (пшеничный) | D11: 40 | E11: 40 | F11: 2.84 | G11: 0.44 | H11: 18.50 | I11: 91.60
C12: Сыр | D12: 6 | E12: 6 | F12: 1.30 | G12: 1.35 | H12: - | I12: 17.35
C13: Масло сливочное | D13: 5 | E13: 5 | F13: 0.01 | G13: 3.14 | H13: 0.02 | I13: 29.36
F14: =SUM(F11:F13) -> 4.15 | G14: =SUM(G11:G13) -> 4.93 | H14: 18.52 | I14: 138.31
A15: Чай сладкий | B15: 200 | C15: Чай | D15: 0.6 | E15: 0.6 | F15: 0.16 | G15: - | H15: 0.02 | I15: -
C16: Сахар | D16: 15 | E16: 15 | F16: - | G16: - | H16: 14.30 | I16: 58.50
F17: =SUM(F15:F16) -> 0.16 | G17: =SUM(G15:G16) -> 0.00 | H17: 14.32 | I17: 58.50
A18: ИТОГО | F18: =F10+F14+F17 -> 11.82 | G18: =G10+G14+G17 -> 29.26 | H18: 43.04 | I18: 437.61
A19: 2-ой ЗАВТРАК
A20: Сок (фрукты) | B20: 200/115 | C20: Сок (фрукты) | D20: 200/115 | E20: 200/115 | F20: - | G20: - | H20: 12.00 | I20: 48.00
A21: ОБЕД
A22: Салат из зеленого горошка | B22: 60 | C22: Зеленый горошек | D22: 50 | E22: 50 | F22: 2.10 | G22: - | H22: 6.35 | I22: 34.50
C23: Огурцы соленые | D23: 30.00 | E23: 30.00 | F23: 0.20 | G23: - | H23: 0.35 | I23: 2.33
C24: Лук репчатый | D24: 10 | E24: 8 | F24: 0.11 | G24: - | H24: 0.73 | I24: 3.30
C25: Масло растительное | D25: 4 | E25: 4 | F25: - | G25: 3.75 | H25: - | I25: 34.92
F26: =SUM(F22:F25) -> 2.41 | G26: =SUM(G22:G25) -> 3.75 | H26: =SUM(H22:H25) -> 7.43 | I26: =SUM(I22:I25) -> 75.05
A27: Суп вермишелевый | B27: 200 | C27: Мясо | D27: 69 | E27: 69 | F27: 9.73 | G27: 3.38 | H27: - | I27: 69.59
C28: Картофель | D28: 200 | E28: 180 | F28: =4*0.63 -> 2.52 | G28: =4*0.14 -> 0.56 | H28: =4*5.71 -> 22.84 | I28: =4*28 -> 112.00
C29: Лук репчатый | D29: 10 | E29: 8 | F29: 0.11 | G29: - | H29: 0.73 | I29: 3.30
C30: Вермишель | D30: 15 | E30: 15 | F30: 1.6 | G30: 0.17 | H30: 17.18 | I30: 55.34
C31: Масло сливочное | D31: 2 | E31: 2 | F31: 0.01 | G31: 1.57 | H31: 0.01 | I31: 14.68
C32: Морковь | D32: 10 | E32: 8 | F32: 0.02 | G32: - | H32: 0.58 | I32: 2.70
F33: =SUM(F27:F32) -> 13.99 | G33: =SUM(G27:G32) -> 5.68 | H33: =SUM(H27:H32) -> 41.34 | I33: =SUM(I27:I32) -> 257.61
A34: Рис отварной с сосиской | B34: 150/40 | C34: Рис | D34: 30 | E34: 30 | F34: 3.15 | G34: 0.69 | H34: 19.08 | I34: 97.50
C35: Масло сливочное | D35: 4 | E35: 4 | F35: 0.02 | G35: 3.14 | H35: 0.02 | I35: 29.36
C36: Масло растительное | D36: 5 | E36: 5 | F36: - | G36: 4.69 | H36: - | I36: 43.65
C37: Морковь | D37: 10 | E37: 8 | F37: 0.02 | G37: - | H37: 0.58 | I37: 2.70
C38: Лук репчатый | D38: 10 | E38: 8 | F38: 0.11 | G38: - | H38: 0.73 | I38: 3.30
C39: Сосиски | D39: 40 | E39: 40 | F39: 10.30 | G39: 17.90 | H39: 0.40 | I39: 200.00
F40: =SUM(F34:F39) -> 13.60 | G40: =SUM(G34:G39) -> 26.42 | H40: =SUM(H34:H39) -> 20.81 | I40: =SUM(I34:I39) -> 376.51
A41: Компот | B41: 200 | C41: Сухофрукты | D41: 10 | E41: 10 | F41: 0.44 | G41: - | H41: 0.62 | I41: 27.90
C42: Сахар | D42: 15 | E42: 15 | F42: - | G42: - | H42: 14.30 | I42: 58.50
F43: =SUM(F41:F42) -> 0.44 | G43: =SUM(G41:G42) -> 0.00 | H43: 14.92 | I43: 86.40
A44: Хлеб ржаной (пшеничный) | B44: 40 | C44: Хлеб ржаной (пшеничный) | D44: 40 | E44: 40 | F44: 2.08 | G44: 0.48 | H44: 17.70 | I44: 85.60
A45: ИТОГО | F45: =F26+F33+F40+F43+F44 -> 32.52 | G45: =G26+G33+G40+G43+G44 -> 36.33 | H45: =H26+H33+H40+H43+H44 -> 102.20 | I45: =I26+I33+I40+I43+I44 -> 881.17
A46: ПОЛДНИК
A47: Банан | B47: 100 | C47: Банан | D47: 100 | E47: 80 | F47: 1.50 | G47: 0.10 | H47: 21.80 | I47: 89.00
F48: =SUM(F47) -> 1.50 | G48: =SUM(G47) -> 0.10 | H48: 21.80 | I48: 89.00
A49: Вафли (печенье, пряники) | B49: 20 | C49: Вафли (печенье, пряники) | D49: 20 | E49: 20 | F49: 1.57 | G49: 1.92 | H49: 11.03 | I49: 66.81
F50: =SUM(F49:F49) -> 1.57 | G50: =SUM(G49:G49) -> 1.92 | H50: =SUM(H49:H49) -> 11.03 | I50: =SUM(I49:I49) -> 66.81
A51: Молоко кипячёное | B51: 200 | C51: Молоко | D51: 200 | E51: 200 | F51: =2.8*1.5 -> 4.20 | G51: =3.2*1.5 -> 4.80 | H51: =4.7*1.5 -> 7.05 | I51: =59*1.5 -> 88.50
F52: =SUM(F51:F51) -> 4.20 | G52: =SUM(G51:G51) -> 4.80 | H52: =SUM(H51:H51) -> 7.05 | I52: =SUM(I51:I51) -> 88.50
A53: ИТОГО | F53: =F50+F52+F48 -> 7.27 | G53: =G50+G52+G48 -> 6.82 | H53: =H50+H52+H48 -> 39.88 | I53: =I50+I52+I48 -> 244.31
A54: ИТОГО ЗА ДЕНЬ | F54: =SUM(F18+F45+F53,F20) -> 51.61 | G54: =SUM(G18+G45+G53,G20) -> 72.41 | H54: =SUM(H18+H45+H53,H20) -> 197.12 | I54: =SUM(I18+I45+I53,I20) -> 1611.09

Sheet 7 день
A1: 7-ой день
A2: для детей от 2 до 7 лет
A4: Меню | B4: Выход | C4: Продукты | D4: Брутто | E4: Нетто | F4: Б | G4: Ж | H4: У | I4: Энергет.ценность
A5: ЗАВТРАК
A6: Каша пшенная | B6: 250 | C6: Крупа пшенная | D6: 30 | E6: 30 | F6: 4,60, | G6: 1.32 | H6: 26.60 | I6: 139.20
C7: Молоко | D7: 100 | E7: 100 | F7: 2.80 | G7: 3.20 | H7: 4.70 | I7: 59.00
C8: Сахар | D8: 4 | E8: 4 | F8: - | G8: - | H8: 3.81 | I8: 15.60
C9: Масло сливочное | D9: 6 | E9: 6 | F9: 0.02 | G9: 4.71 | H9: 0.03 | I9: 44.04
F10: =SUM(F6:F9) -> 2.82 | G10: =SUM(G6:G9) -> 9.23 | H10: 35.14 | I10: 257.84
A11: Хлеб с сыром с маслом | B11: 40/6 | C11: Хлеб ржаной (пшеничный) | D11: 40 | E11: 40 | F11: 2.84 | G11: 0.44 | H11: 18.50 | I11: 91.60
C12: Сыр | D12: 6 | E12: 6 | F12: 1.30 | G12: 1.35 | H12: - | I12: 17.35
C13: Масло сливочное | D13: 5 | E13: 5 | F13: 0.01 | G13: 3.14 | H13: 0.02 | I13: 29.36
F14: =SUM(F11:F13) -> 4.15 | G14: =SUM(G11:G13) -> 4.93 | H14: 18.52 | I14: 138.31
A15: Чай сладкий | B15: 200 | C15: Чай | D15: 0.6 | E15: 0.6 | F15: 0.16 | G15: - | H15: 0.02 | I15: -
C16: Сахар | D16: 15 | E16: 15 | F16: - | G16: - | H16: 14.30 | I16: 58.50
F17: =SUM(F15:F16) -> 0.16 | G17: =SUM(G15:G16) -> 0.00 | H17: 14.32 | I17: 58.50
A18: ИТОГО | F18: =F10+F14+F17 -> 7.13 | G18: =G10+G14+G17 -> 14.16 | H18: 67.98 | I18: 454.65
A19: 2-ой ЗАВТРАК
A20: Сок (фрукты) | B20: 200/115 | C20: Сок (фрукты) | D20: 200/115 | E20: 200/115 | F20: - | G20: - | H20: 12.00 | I20: 48.00
A21: ОБЕД
A22: Винегрет | B22: 50 | C22: Капуста | D22: 60 | E22: 48 | F22: 0.86 | G22: 0.04 | H22: 2.26 | I22: 13.00
C23: Свекла | D23: 45 | E23: 36 | F23: 0.54 | G23: - | H23: 3.37 | I23: 15.10
C24: Огурцы соленые | D24: 30.00 | E24: 30.00 | F24: 0.20 | G24: - | H24: 0.35 | I24: 2.33
C25: Зеленый горошек | D25: 50 | E25: 50 | F25: 2.10 | G25: - | H25: 6.35 | I25: 34.50
C26: Морковь | D26: 10 | E26: 8 | F26: 0.08 | G26: - | H26: 0.49 | I26: 2.32
C27: Картофель | D27: 50 | E27: 48 | F27: 0.01 | G27: - | H27: 0.80 | I27: 3.36
C28: Масло растительное | D28: 4 | E28: 4 | F28: - | G28: 3.75 | H28: - | I28: 34.92
F29: =SUM(F22:F28) -> 3.79 | G29: =SUM(G22:G28) -> 3.79 | H29: =SUM(H22:H28) -> 13.62 | I29: =SUM(I22:I28) -> 105.53
A30: Домашняя лапша | B30: 200 | C30: Мясо | D30: 38 | E30: 26.6 | F30: 3.75 | G30: 1.30 | H30: - | I30: 26.83
C31: Картофель | D31: 200 | E31: 180 | F31: =4*0.63 -> 2.52 | G31: =4*0.14 -> 0.56 | H31: =4*5.71 -> 22.84 | I31: =4*28 -> 112.00
C32: Лук репчатый | D32: 10 | E32: 8 | F32: 0.11 | G32: - | H32: 0.73 | I32: 3.30
C33: Яйцо 1/8 шт. | D33: 5 | E33: 4.25 | F33: 0.62 | G33: 1.25 | H33: 0.02 | I33: 14.11
C34: Мука | D34: 35 | E34: 35 | F34: 3.25 | G34: 0.35 | H34: 24.40 | I34: 110.95
C35: Масло сливочное | D35: 3 | E35: 3 | F35: 0.01 | G35: 2.35 | H35: 0.01 | I35: 22.02
C36: Морковь | D36: 10 | E36: 8 | F36: 0.02 | G36: - | H36: 0.58 | I36: 2.70
F37: =SUM(F30:F36) -> 10.28 | G37: =SUM(G30:G36) -> 5.81 | H37: =SUM(H30:H36) -> 48.58 | I37: =SUM(I30:I36) -> 291.91
A38: Голубцы ленивые | B38: 200 | C38: Рис | D38: 30 | E38: 30 | F38: 2.10 | G38: 0.3 | H38: 21.42 | I38: 99.0
C39: Мясо | D39: 69 | E39: 69 | F39: 9.73 | G39: 3.38 | H39: - | I39: 69.59
C40: Масло сливочное | D40: 6 | E40: 6 | F40: 0.02 | G40: 4.71 | H40: 0.03 | I40: 44.04
C41: Масло растительное | D41: 3 | E41: 3 | F41: - | G41: 2.81 | H41: 26.19 | I41: 43.65
C42: Капуста | D42: 160 | E42: 128 | F42: 2.30 | G42: 0.13 | H42: 6.02 | I42: 34.60
C43: Лук репчатый | D43: 7 | E43: 6 | F43: 0.08 | G43: - | H43: 0.55 | I43: 2.50
C44: Морковь | D44: 15 | E44: 12 | F44: 0.03 | G44: - | H44: 0.87 | I44: 4.10
F45: =SUM(F38:F44) -> 14.26 | G45: =SUM(G38:G44) -> 11.33 | H45: =SUM(H38:H44) -> 55.08 | I45: =SUM(I38:I44) -> 297.48
A46: Компот | B46: 200 | C46: Сухофрукты | D46: 10 | E46: 10 | F46: 0.44 | G46: - | H46: 0.62 | I46: 27.90
C47: Сахар | D47: 15 | E47: 15 | F47: - | G47: - | H47: 14.30 | I47: 58.50
F48: =SUM(F46:F47) -> 0.44 | G48: =SUM(G46:G47) -> 0.00 | H48: 14.92 | I48: 86.40
A49: Хлеб ржаной (пшеничный) | B49: 40 | C49: Хлеб ржаной (пшеничный) | D49: 40 | E49: 40 | F49: 2.08 | G49: 0.48 | H49: 17.70 | I49: 85.60
A50: ИТОГО | F50: =F29+F37+F45+F48+F49 -> 30.85 | G50: =G29+G37+G45+G48+G49 -> 21.41 | H50: =H29+H37+H45+H48+H49 -> 149.90 | I50: =I29+I37+I45+I48+I49 -> 866.92
A51: ПОЛДНИК
A52: Творожная запеканка | B52: 120 | C52: Молоко | D52: 20 | E52: 20 | F52: 0.56 | G52: 0.64 | H52: 0.94 | I52: 11.60
C53: Яйцо 1/5шт. | D53: 8 | E53: 6.96 | F53: 1.28 | G53: 2.06 | H53: 0.02 | I53: 23.00
C54: Сахар | D54: 3 | E54: 3 | F54: - | G54: - | H54: 2.86 | I54: 11.70
C55: Творог | D55: 100 | E55: 100 | F55: 12.00 | G55: 8.50 | H55: 3.30 | I55: 141.00
C56: Масло сливочное | D56: 4 | E56: 4 | F56: 0.01 | G56: 3.14 | H56: 0.02 | I56: 29.36
C57: Сахар | D57: 3 | E57: 3 | F57: - | G57: - | H57: 2.96 | I57: 11.70
C58: Масло растительное | D58: 3 | E58: 3 | F58: - | G58: 2.81 | H58: - | I58: 26.19
F59: =SUM(F52:F58) -> 13.85 | G59: =SUM(G52:G58) -> 17.15 | H59: 10.10 | I59: 254.55
A60: Фрукты свежие | B60: 100 | C60: Яблоко | D60: 100 | E60: 80 | F60: 1.50 | G60: 0.10 | H60: 21.80 | I60: 89.00
A62: Какао с молоком | B62: 200 | C62: Какао | D62: 1.07 | E62: 1.07 | F62: 0.26 | G62: 0.18 | H62: 0.26 | I62: 4.07
C63: Молоко | D63: 100 | E63: 100 | F63: 2.80 | G63: 3.20 | H63: 4.70 | I63: 59.00
C64: Сахар | D64: 12 | E64: 12 | F64: - | G64: - | H64: 11.40 | I64: 46.80
F65: =SUM(F62:F64) -> 3.06 | G65: =SUM(G62:G64) -> 3.38 | H65: 16.36 | I65: 109.87
A66: ИТОГО ЗА ДЕНЬ | F66: =SUM(F18+F50+F65,F20) -> 41.04 | G66: =SUM(G18+G50+G65,G20) -> 38.95 | H66: =SUM(H18+H50+H65,H20) -> 246.24 | I66: =SUM(I18+I50+I65,I20) -> 1479.44

Sheet 8 день
A1: 8-ой день
A2: для детей от 2 до 7 лет
A4: Меню | B4: Выход | C4: Продукты | D4: Брутто | E4: Нетто | F4: Б | G4: Ж | H4: У | I4: Энергет.ценность
A5: ЗАВТРАК
A6: Каша пшеничная | B6: 250 | C6: Крупа пшеничная | D6: 25 | E6: 25 | F6: 2.50 | G6: 0.55 | H6: 16.35 | I6: 82.50
C7: Молоко | D7: 200 | E7: 200 | F7: 5.60 | G7: 6.40 | H7: 8.40 | I7: 118.00
C8: Сахар | D8: 4 | E8: 4 | F8: - | G8: - | H8: 3.81 | I8: 15.60
C9: Масло сливочное | D9: 6 | E9: 6 | F9: 0.02 | G9: 4.71 | H9: 0.03 | I9: 44.04
F10: =SUM(F6:F9) -> 8.12 | G10: =SUM(G6:G9) -> 11.66 | H10: 28.59 | I10: 260.14
A11: Хлеб с сыром с маслом | B11: 40/6 | C11: Хлеб ржаной (пшеничный) | D11: 40 | E11: 40 | F11: 2.84 | G11: 0.44 | H11: 18.50 | I11: 91.60
C12: Сыр | D12: 6 | E12: 6 | F12: 1.30 | G12: 1.35 | H12: - | I12: 17.35
C13: Масло сливочное | D13: 5 | E13: 5 | F13: 0.01 | G13: 3.14 | H13: 0.02 | I13: 29.36
F14: =SUM(F11:F13) -> 4.15 | G14: =SUM(G11:G13) -> 4.93 | H14: 18.52 | I14: 138.31
A15: Чай сладкий | B15: 200 | C15: Чай | D15: 0.6 | E15: 0.6 | F15: 0.16 | G15: - | H15: 0.02 | I15: -
C16: Сахар | D16: 15 | E16: 15 | F16: - | G16: - | H16: 14.30 | I16: 58.50
F17: =SUM(F15:F16) -> 0.16 | G17: =SUM(G15:G16) -> 0.00 | H17: 14.32 | I17: 58.50
A18: ИТОГО | F18: =F10+F14+F17 -> 12.43 | G18: =G10+G14+G17 -> 16.59 | H18: 61.43 | I18: 456.95
A19: 2-ой ЗАВТРАК
A20: Сок (фрукты) | B20: 200/115 | C20: Сок (фрукты) | D20: 200/115 | E20: 200/115 | F20: - | G20: - | H20: 12.00 | I20: 48.00
A21: ОБЕД
A22: квашенный капусты | B22: 65 | C22: карпуста квашеная | D22: 65 | E22: 52 | F22: 0.52 | G22: - | H22: 3.17 | I22: 15.08
C23: Сахар | D23: 2 | E23: 2 | F23: - | G23: - | H23: 2.00 | I23: 7.60
C24: Лук репчатый | D24: 7 | E24: 6 | F24: 0.09 | G24: - | H24: 0.56 | I24: 2.60
C25: Масло растительное | D25: 4 | E25: 4 | F25: - | G25: 3.75 | H25: - | I25: 34.92
F26: =SUM(F22:F25) -> 0.61 | G26: =SUM(G22:G25) -> 3.75 | H26: =SUM(H22:H25) -> 5.73 | I26: =SUM(I22:I25) -> 60.20
A27: Суп картофельный с мясом | B27: 200 | C27: Мясо | D27: 38 | E27: 26.6 | F27: 3.75 | G27: 1.30 | H27: - | I27: 26.83
C28: Картофель | D28: 200 | E28: 150 | F28: =4*0.84 -> 3.36 | G28: =4*0.16 -> 0.64 | H28: =4*6.84 -> 27.36 | I28: =4*33.6 -> 134.40
C29: Лук репчатый | D29: 7 | E29: 6 | F29: 0.09 | G29: - | H29: 0.56 | I29: 2.60
C31: Масло сливочное | D31: 2 | E31: 2 | F31: 0.01 | G31: 1.57 | H31: 0.01 | I31: 14.68
C32: Морковь | D32: 15 | E32: 12 | F32: 0.03 | G32: - | H32: 0.87 | I32: 4.10
F33: =SUM(F27:F32) -> 7.24 | G33: =SUM(G27:G32) -> 3.51 | H33: =SUM(H27:H32) -> 28.80 | I33: =SUM(I27:I32) -> 182.61
A34: Макароны с мясом | B34: 150/70 | C34: Макароны | D34: 35 | E34: 35 | F34: 3.25 | G34: 0.35 | H34: 34.36 | I34: 111.68
C35: Мясо | D35: 70 | E35: 70 | F35: 9.87 | G35: 3.43 | H35: - | I35: 70.60
C36: Масло сливочное | D36: 5 | E36: 5 | F36: 0.02 | G36: 3.92 | H36: 0.02 | I36: 30.70
C37: Масло растительное | D37: 3 | E37: 3 | F37: - | G37: 2.81 | H37: - | I37: 26.19
C38: Лук репчатый | D38: 10 | E38: 8 | F38: 0.11 | G38: - | H38: 0.73 | I38: 3.30
C39: Мука пшеничная | D39: 2 | E39: 2 | F39: 0.18 | G39: 0.02 | H39: 1.40 | I39: 6.14
C40: Морковь | D40: 20 | E40: 16 | F40: 0.16 | G40: - | H40: 0.98 | I40: 4.64
F41: =SUM(F34:F40) -> 13.59 | G41: =SUM(G34:G40) -> 10.53 | H41: =SUM(H34:H40) -> 37.49 | I41: =SUM(I34:I40) -> 253.25
A42: Компот | B42: 200 | C42: Сухофрукты | D42: 10 | E42: 10 | F42: 0.44 | G42: - | H42: 0.62 | I42: 27.90
C43: Сахар | D43: 15 | E43: 15 | F43: - | G43: - | H43: 14.30 | I43: 58.50
F44: =SUM(F42:F43) -> 0.44 | G44: =SUM(G42:G43) -> 0.00 | H44: 14.92 | I44: 86.40
A45: Хлеб ржаной (пшеничный) | B45: 40 | C45: Хлеб ржаной (пшеничный) | D45: 40 | E45: 40 | F45: 2.08 | G45: 0.48 | H45: 17.70 | I45: 85.60
A46: ИТОГО | F46: =F26+F33+F41+F44+F45 -> 23.96 | G46: =G26+G33+G41+G44+G45 -> 18.27 | H46: =H26+H33+H41+H44+H45 -> 104.64 | I46: =I26+I33+I41+I44+I45 -> 668.06
A47: ПОЛДНИК
A48: Хлеб ржаной (пшеничный) | B48: 40 | C48: Хлеб ржаной (пшеничный) | D48: 40 | E48: 40 | F48: 2.08 | G48: 0.48 | H48: 17.70 | I48: 85.60
F50: =SUM(F48:F48) -> 2.08 | G50: =SUM(G48:G48) -> 0.48 | H50: =SUM(H48:H48) -> 17.70 | I50: =SUM(I48:I48) -> 85.60
A51: Творог | B51: 80 | C51: Творог | D51: 50 | E51: 50 | F51: 4.25 | G51: 5.00 | H51: 1.75 | I51: 69.00
C52: Сметана | D52: 11 | E52: 11 | F52: =2.1/100*7 -> 0.15 | G52: =28.2/100*7 -> 1.97 | H52: =3.1/100*7 -> 0.22 | I52: =284/100*7 -> 19.88
C53: Сахар | D53: 5 | E53: 5 | F53: - | G53: - | H53: 4.99 | I53: 18.95
F54: =SUM(F51:F51) -> 4.25 | G54: =SUM(G51:G51) -> 5.00 | H54: =SUM(H51:H51) -> 1.75 | I54: =SUM(I51:I51) -> 69.00
A55: Фрукты свежие | B55: 100 | C55: Апельсин | D55: 100 | E55: 100 | F55: 2.10 | G55: 28.20 | H55: 3.10
F56: =SUM(F55:F55) -> 2.10 | G56: =SUM(G55:G55) -> 28.20 | H56: =SUM(H55:H55) -> 3.10 | I56: =SUM(I55:I55) -> 0.00
A57: Кисель фруктовый | B57: 200 | C57: Кисель | D57: 1.07 | E57: 1.07 | F57: 0.26 | G57: 0.18 | H57: 0.26 | I57: 4.07
F58: =SUM(F57:F57) -> 0.26 | G58: =SUM(G57:G57) -> 0.18 | H58: =SUM(H57:H57) -> 0.26 | I58: =SUM(I57:I57) -> 4.07
A59: ИТОГО | F59: =F50+F54+F58+F56 -> 8.69 | G59: =G50+G54+G58+G56 -> 33.86 | H59: =H50+H54+H58+H56 -> 22.81 | I59: =I50+I54+I58+I56 -> 158.67
A60: ИТОГО ЗА ДЕНЬ | F60: =SUM(F18+F46+F59,F20) -> 45.08 | G60: =SUM(G18+G46+G59,G20) -> 68.72 | H60: =SUM(H18+H46+H59,H20) -> 200.88 | I60: =SUM(I18+I46+I59,I20) -> 1331.68

Sheet 9 день
A1: 9-ый день
A2: для детей от 2 до 7 лет
A4: Меню | B4: Выход | C4: Продукты | D4: Брутто | E4: Нетто | F4: Б | G4: Ж | H4: У | I4: Энергет.ценность
A5: ЗАВТРАК
A6: Каша рисовая | B6: 250 | C6: Крупа рисовая | D6: 30 | E6: 30 | F6: =1.75/5*6 -> 2.10 | G6: =0.25/5*6 -> 0.30 | H6: =17.85/5*6 -> 21.42 | I6: =82.5/5*6 -> 99.00
C7: Молоко | D7: 200 | E7: 200 | F7: 5.60 | G7: 6.40 | H7: 8.40 | I7: 118.00
C8: Сахар | D8: 4 | E8: 4 | F8: - | G8: - | H8: 3.82 | I8: 15.60
C9: Масло сливочное | D9: 4 | E9: 4 | F9: 0.01 | G9: 3.14 | H9: 0.02 | I9: 29.36
F10: =SUM(F6:F9) -> 7.71 | G10: =SUM(G6:G9) -> 9.84 | H10: 33.66 | I10: 261.96
A11: Хлеб с сыром с маслом | B11: 40/6 | C11: Хлеб ржаной (пшеничный) | D11: 40 | E11: 40 | F11: 2.84 | G11: 0.44 | H11: 18.50 | I11: 91.60
C12: Сыр | D12: 6 | E12: 6 | F12: 1.30 | G12: 1.35 | H12: - | I12: 17.35
C13: Масло сливочное | D13: 5 | E13: 5 | F13: 0.01 | G13: 3.14 | H13: 0.02 | I13: 29.36
F14: =SUM(F11:F13) -> 4.15 | G14: =SUM(G11:G13) -> 4.93 | H14: 18.52 | I14: 138.31
A15: Чай сладкий | B15: 200 | C15: Чай | D15: 0.6 | E15: 0.6 | F15: 0.16 | G15: - | H15: 0.02 | I15: -
C16: Сахар | D16: 15 | E16: 15 | F16: - | G16: - | H16: 14.30 | I16: 58.50
F17: =SUM(F15:F16) -> 0.16 | G17: =SUM(G15:G16) -> 0.00 | H17: 14.32 | I17: 58.50
A18: ИТОГО | F18: =F10+F14+F17 -> 12.02 | G18: =G10+G14+G17 -> 14.77 | H18: 66.50 | I18: 458.77
A19: 2-ой ЗАВТРАК
A20: Сок (фрукты) | B20: 200/115 | C20: Сок (фрукты) | D20: 200/115 | E20: 200/115 | F20: - | G20: - | H20: 12.00 | I20: 48.00
A21: ОБЕД
A23: Суп крестьянский | B23: 200 | C23: Мясо | D23: 38 | E23: 26.6 | F23: 3.75 | G23: 1.30 | H23: - | I23: 26.83
C24: Картофель | D24: 60 | E24: 42 | F24: 0.84 | G24: 0.16 | H24: 6.84 | I24: 33.60
C25: Лук репчатый | D25: 7 | E25: 6 | F25: 0.09 | G25: - | H25: 0.56 | I25: 2.60
C26: Пшено | D26: 15 | E26: 15 | F26: 2.30 | G26: 0.66 | H26: 13.30 | I26: 69.60
C27: Масло сливочное | D27: 2 | E27: 2 | F27: 0.01 | G27: 1.57 | H27: 0.01 | I27: 14.68
C28: Морковь | D28: 15 | E28: 12 | F28: 0.03 | G28: - | H28: 0.87 | I28: 4.10
F29: =SUM(F23:F28) -> 7.02 | G29: =SUM(G23:G28) -> 3.69 | H29: =SUM(H23:H28) -> 21.58 | I29: =SUM(I23:I28) -> 151.41
A30: Тушеная капуста с мясом | B30: 200 | C30: Капуста | D30: 260 | E30: 210 | F30: 3.78 | G30: 0.21 | H30: 9.87 | I30: 56.7
C31: Мясо | D31: 69 | E31: 69 | F31: 9.73 | G31: 3.38 | H31: - | I31: 69.59
C32: Томат | D32: 7 | E32: 7 | F32: 0.34 | G32: - | H32: 1.33 | I32: 7.00
C33: Мука пшеничная | D33: 7 | E33: 7 | F33: 0.70 | G33: 0.09 | H33: 4.97 | I33: 23.40
C34: Масло сливочное | D34: 6 | E34: 6 | F34: 0.02 | G34: 4.71 | H34: 0.03 | I34: 44.04
C35: Масло растительное | D35: 6 | E35: 6 | F35: - | G35: 5.63 | H35: - | I35: 52.38
C36: Лук репчатый | D36: 13 | E36: 10 | F36: 0.14 | G36: - | H36: 0.91 | I36: 4.10
C37: Сахар | D37: 2 | E37: 2 | F37: - | G37: - | H37: 1.99 | I37: 7.58
C38: Морковь | D38: 20 | E38: 16 | F38: 0.05 | G38: 0.02 | H38: 1.15 | I38: 5.40
F39: =SUM(F30:F38) -> 14.76 | G39: =SUM(G30:G38) -> 14.04 | H39: 20.25 | I39: 270.19
A40: Компот | B40: 200 | C40: Сухофрукты | D40: 10 | E40: 10 | F40: 0.44 | G40: - | H40: 0.62 | I40: 27.90
C41: Сахар | D41: 15 | E41: 15 | F41: - | G41: - | H41: 14.30 | I41: 58.50
F42: =SUM(F40:F41) -> 0.44 | G42: =SUM(G40:G41) -> 0.00 | H42: 14.92 | I42: 86.40
A43: Хлеб ржаной (пшеничный) | B43: 40 | C43: Хлеб ржаной (пшеничный) | D43: 40 | E43: 40 | F43: 2.08 | G43: 0.48 | H43: 17.70 | I43: 85.60
A44: ИТОГО | F44: =F22+F29+F39+F42+F43 -> 24.30 | G44: =G22+G29+G39+G42+G43 -> 18.21 | H44: =H22+H29+H39+H42+H43 -> 74.45 | I44: =I22+I29+I39+I42+I43 -> 593.60
A45: ПОЛДНИК
A46: Хлеб | B46: 40 | C46: Хлеб ржаной (пшеничный) | D46: 40 | E46: 40 | F46: 3.00 | G46: 0.40 | H46: 21.30 | I46: 100.20
F48: =SUM(F46:F46) -> 3.00 | G48: =SUM(G46:G46) -> 0.40 | H48: =SUM(H46:H46) -> 21.30 | I48: =SUM(I46:I46) -> 100.20
A49: Омлет | B49: 150 | C49: Молоко | D49: 100 | E49: 100 | F49: 2.80 | G49: 3.20 | H49: 4.70 | I49: 59.00
C50: Масло сливочное | D50: 4 | E50: 4 | F50: 0.01 | G50: 3.14 | H50: 0.02 | I50: 29.36
C51: Масло растительное | D51: 10 | E51: 10 | F51: - | G51: =3.75/4*10 -> 9.38 | H51: - | I51: =34.92/4*10 -> 87.30
C52: Яйцо 1 шт. | D52: 40 | E52: 34.8 | F52: 5.08 | G52: 10.30 | H52: 0.17 | I52: 115.00
F53: =SUM(F49:F52) -> 7.89 | G53: =SUM(G49:G52) -> 26.02 | H53: 4.89 | I53: =SUM(I49:I52) -> 290.66
A54: Какао с молоком | B54: 200 | C54: Какао | D54: 1.07 | E54: 1.07 | F54: 0.26 | G54: 0.18 | H54: 0.26 | I54: 4.07
C55: Молоко | D55: 100 | E55: 100 | F55: 2.80 | G55: 3.20 | H55: 4.70 | I55: 59.00
C56: Сахар | D56: 12 | E56: 12 | F56: - | G56: - | H56: 11.40 | I56: 46.80
F57: =SUM(F54:F56) -> 3.06 | G57: =SUM(G54:G56) -> 3.38 | H57: 16.36 | I57: 109.87
A58: ИТОГО ЗА ДЕНЬ | F58: =SUM(F18+F44+F57,F20) -> 39.38 | G58: =SUM(G18+G44+G57,G20) -> 36.36 | H58: =SUM(H18+H44+H57,H20) -> 169.31 | I58: =SUM(I18+I44+I57,I20) -> 1210.24

Sheet 10 день
A1: 10-ый день
A2: для детей от 2 до 7 лет
A4: Меню | B4: Выход | C4: Продукты | D4: Брутто | E4: Нетто | F4: Б | G4: Ж | H4: У | I4: Энергет.ценность
A5: ЗАВТРАК
A6: Каша кукурузная | B6: 200 | C6: Крупа кукурузы | D6: 30 | E6: 30 | F6: 2.20 | G6: 0.32 | H6: 20.84 | I6: 97.50
C7: Молоко | D7: 200 | E7: 200 | F7: 5.60 | G7: 6.40 | H7: 9.40 | I7: 118.00
C8: Сахар | D8: 4 | E8: 4 | F8: - | G8: - | H8: 3.82 | I8: 15.60
C9: Масло сливочное | D9: 4 | E9: 4 | F9: 0.01 | G9: 3.14 | H9: 0.02 | I9: 29.36
F10: =SUM(F6:F9) -> 7.81 | G10: =SUM(G6:G9) -> 9.86 | H10: 34.08 | I10: 260.46
A11: Хлеб с сыром с маслом | B11: 40/6 | C11: Хлеб ржаной (пшеничный) | D11: 40 | E11: 40 | F11: 2.84 | G11: 0.44 | H11: 18.50 | I11: 91.60
C12: Сыр | D12: 5 | E12: 5 | F12: 1.30 | G12: 1.35 | H12: - | I12: 17.35
C13: Масло сливочное | D13: 5 | E13: 5 | F13: 0.01 | G13: 3.14 | H13: 0.02 | I13: 29.36
F14: =SUM(F11:F13) -> 4.15 | G14: =SUM(G11:G13) -> 4.93 | H14: 18.52 | I14: 138.31
A15: Чай сладкий | B15: 200 | C15: Чай | D15: 0.6 | E15: 0.6 | F15: 0.16 | G15: - | H15: 0.02 | I15: -
C16: Сахар | D16: 15 | E16: 15 | F16: - | G16: - | H16: 14.30 | I16: 58.50
F17: =SUM(F15:F16) -> 0.16 | G17: =SUM(G15:G16) -> 0.00 | H17: 14.32 | I17: 58.50
A18: ИТОГО | F18: =F10+F14+F17 -> 12.12 | G18: =G10+G14+G17 -> 14.79 | H18: 66.92 | I18: 457.27
A19: 2-ой ЗАВТРАК
A20: Сок (фрукты) | B20: 200/115 | C20: Сок (фрукты) | D20: 200/115 | E20: 200/115 | F20: - | G20: - | H20: 12.00 | I20: 48.00
A21: ОБЕД
A22: Винегрет | B22: 60 | C22: Капуста | D22: 60 | E22: 48 | F22: 0.86 | G22: 0.04 | H22: 2.26 | I22: 13.00
C23: Свекла | D23: 45 | E23: 36 | F23: 0.54 | G23: - | H23: 3.37 | I23: 15.10
C24: Огурцы соленые | D24: 30.00 | E24: 30.00 | F24: 0.20 | G24: - | H24: 0.35 | I24: 2.33
C25: Зеленый горошек | D25: 50 | E25: 50 | F25: 2.10 | G25: - | H25: 6.35 | I25: 34.50
C26: Морковь | D26: 10 | E26: 8 | F26: 0.08 | G26: - | H26: 0.49 | I26: 2.32
C27: Картофель | D27: 50 | E27: 48 | F27: 0.01 | G27: - | H27: 0.80 | I27: 3.36
C28: Масло растительное | D28: 4 | E28: 4 | F28: - | G28: 3.75 | H28: - | I28: 34.92
F29: =SUM(F22:F28) -> 3.79 | G29: =SUM(G22:G28) -> 3.79 | H29: =SUM(H22:H28) -> 13.62 | I29: =SUM(I22:I28) -> 105.53
A30: Суп гречневый | B30: 200 | C30: Мясо | D30: 38 | E30: 26.6 | F30: 3.75 | G30: 1.30 | H30: - | I30: 26.83
C31: Картофель | D31: 60 | E31: 42 | F31: 0.84 | G31: 0.16 | H31: 6.84 | I31: 33.60
C32: Лук репчатый | D32: 7 | E32: 6 | F32: 0.09 | G32: - | H32: 0.56 | I32: 2.60
C33: Гречка | D33: 15 | E33: 15 | F33: 1.58 | G33: 0.35 | H33: 9.54 | I33: =97.5/2 -> 48.75
C34: Масло сливочное | D34: 2 | E34: 2 | F34: 0.01 | G34: 1.57 | H34: 0.01 | I34: 14.68
C35: Морковь | D35: 15 | E35: 12 | F35: 0.03 | G35: - | H35: 0.87 | I35: 4.10
F36: =SUM(F30:F35) -> 6.30 | G36: =SUM(G30:G35) -> 3.38 | H36: =SUM(H30:H35) -> 17.82 | I36: =SUM(I30:I35) -> 130.56
A37: Макароны с жареной рыбой | B37: 150/80 | C37: Макароны | D37: 35 | E37: 35 | F37: 3.25 | G37: 0.35 | H37: 34.36 | I37: 111.68
C38: Рыба | D38: 120 | E38: 100 | F38: 7.90 | G38: 2.80 | H38: - | I38: 58.00
F39: =SUM(F37:F38) -> 11.15 | G39: =SUM(G37:G38) -> 3.15 | H39: =SUM(H37:H38) -> 34.36 | I39: =SUM(I37:I38) -> 169.68
A40: Компот | B40: 200 | C40: Сухофрукты | D40: 10 | E40: 10 | F40: 0.44 | G40: - | H40: 0.62 | I40: 27.90
C41: Сахар | D41: 15 | E41: 15 | F41: - | G41: - | H41: 14.30 | I41: 58.50
F42: =SUM(F40:F41) -> 0.44 | G42: =SUM(G40:G41) -> 0.00 | H42: 14.92 | I42: 86.40
A43: Хлеб ржаной (пшеничный) | B43: 40 | C43: Хлеб ржаной (пшеничный) | D43: 40 | E43: 40 | F43: 2.08 | G43: 0.48 | H43: 17.70 | I43: 85.60
A44: ИТОГО | F44: =F29+F36+F39+F42+F43 -> 23.76 | G44: =G29+G36+G39+G42+G43 -> 10.80 | H44: =H29+H36+H39+H42+H43 -> 98.42 | I44: =I29+I36+I39+I42+I43 -> 577.77
A45: ПОЛДНИК
A46: Суп молочный рисовый | B46: 150 | C46: Крупа рисовая | D46: 15 | E46: 15 | F46: 0.94 | G46: 0.13 | H46: 10.66 | I46: 2.25
C47: Масло сливочное | D47: 6 | E47: 6 | F47: 0.02 | G47: 4.71 | H47: 0.03 | I47: 44.04
C48: Молоко | D48: 150 | E48: 150 | F48: 4.20 | G48: 4.80 | H48: 7.05 | I48: 88.50
F49: =SUM(F46:F46) -> 0.94 | G49: =SUM(G46:G46) -> 0.13 | H49: =SUM(H46:H46) -> 10.66 | I49: =SUM(I46:I46) -> 2.25
A50: Вафли (печенье, пряники) | B50: 20 | C50: Вафли (печенье, пряники) | D50: 20 | E50: 20 | F50: 1.57 | G50: 1.92 | H50: 11.03 | I50: 66.81
F51: =SUM(F50:F50) -> 1.57 | G51: =SUM(G50:G50) -> 1.92 | H51: =SUM(H50:H50) -> 11.03 | I51: =SUM(I50:I50) -> 66.81
A52: Кисель фруктовый | B52: 200 | C52: Кисель | D52: 1.07 | E52: 1.07 | F52: 0.26 | G52: 0.18 | H52: 0.26 | I52: 4.07
F53: =SUM(F52:F52) -> 0.26 | G53: =SUM(G52:G52) -> 0.18 | H53: =SUM(H52:H52) -> 0.26 | I53: =SUM(I52:I52) -> 4.07
A54: ИТОГО | F54: =F49+F51+F53 -> 2.77 | G54: =G49+G51+G53 -> 2.23 | H54: =H49+H51+H53 -> 21.95 | I54: =I49+I51+I53 -> 73.13
A55: ИТОГО ЗА ДЕНЬ | F55: =SUM(F18+F44+F54,F20) -> 38.65 | G55: =SUM(G18+G44+G54,G20) -> 27.82 | H55: =SUM(H18+H44+H54,H20) -> 199.29 | I55: =SUM(I18+I44+I54,I20) -> 1156.17

Sheet 11 день
A1: 11-ый день
A2: для детей от 2 до 7 лет
A4: Меню | B4: Выход | C4: Продукты | D4: Брутто | E4: Нетто | F4: Б | G4: Ж | H4: У | I4: Энергет.ценность
A5: ЗАВТРАК
A6: Каша геркулесовая | B6: 200 | C6: Крупа геркулес | D6: 30 | E6: 30 | F6: 2.32 | G6: 0.25 | H6: 17.42 | I6: 79.25
C7: Молоко | D7: 100 | E7: 100 | F7: 2.80 | G7: 3.20 | H7: 4.70 | I7: 59.00
C8: Сахар | D8: 5 | E8: 5 | F8: - | G8: - | H8: 4.99 | I8: 18.95
C9: Масло сливочное | D9: 4 | E9: 4 | F9: 0.01 | G9: 3.14 | H9: 0.02 | I9: 29.36
F10: =SUM(F6:F9) -> 5.13 | G10: =SUM(G6:G9) -> 6.59 | H10: 27.13 | I10: 186.56
A11: Хлеб с сыром с маслом | B11: 40/6 | C11: Хлеб ржаной (пшеничный) | D11: 40 | E11: 40 | F11: 2.84 | G11: 0.44 | H11: 18.50 | I11: 91.60
C12: Сыр | D12: 5 | E12: 5 | F12: 1.30 | G12: 1.35 | H12: - | I12: 17.35
C13: Масло сливочное | D13: 5 | E13: 5 | F13: 0.01 | G13: 3.14 | H13: 0.02 | I13: 29.36
F14: =SUM(F11:F13) -> 4.15 | G14: =SUM(G11:G13) -> 4.93 | H14: 18.52 | I14: 138.31
A15: Чай сладкий | B15: 200 | C15: Чай | D15: 0.6 | E15: 0.6 | F15: 0.16 | G15: - | H15: 0.02 | I15: -
C16: Сахар | D16: 15 | E16: 15 | F16: - | G16: - | H16: 14.30 | I16: 58.50
F17: =SUM(F15:F16) -> 0.16 | G17: =SUM(G15:G16) -> 0.00 | H17: 14.32 | I17: 58.50
A18: ИТОГО | F18: =F10+F14+F17 -> 9.44 | G18: =G10+G14+G17 -> 11.52 | H18: 59.97 | I18: 383.37
A19: 2-ой ЗАВТРАК
A20: Сок (фрукты) | B20: 200/115 | C20: Сок (фрукты) | D20: 200/115 | E20: 200/115 | F20: - | G20: - | H20: 12.00 | I20: 48.00
A21: ОБЕД
A22: Салат из варёный свеклы | B22: 50 | C22: Свекла вареная | D22: 65.00 | E22: 52.00 | F22: 0.54 | G22: 0.05 | H22: 4.73 | I22: 21.80
C23: Сахар | D23: 2 | E23: 2 | F23: - | G23: - | H23: 2.00 | I23: 7.60
C24: Масло растительное | D24: 4 | E24: 4 | F24: - | G24: 3.75 | H24: - | I24: 34.92
F25: =SUM(F22:F24) -> 0.54 | G25: =SUM(G22:G24) -> 3.80 | H25: =SUM(H22:H24) -> 6.73 | I25: =SUM(I22:I24) -> 64.32
A26: Уха | B26: 200 | C26: Рыба | D26: 100 | E26: 48 | F26: 38.40 | G26: 0.72 | H26: - | I26: 83.20
C27: Картофель | D27: 60 | E27: 42 | F27: 0.84 | G27: 0.16 | H27: 6.84 | I27: 33.60
C28: Лук репчатый | D28: 10 | E28: 8 | F28: 0.11 | G28: - | H28: 0.73 | I28: 3.30
C29: Рис | D29: 10 | E29: 10 | F29: 0.63 | G29: 0.09 | H29: 7.11 | I29: 32.60
C30: Яйцо 1/8 шт. | D30: 5 | E30: 4.25 | F30: 0.62 | G30: 1.24 | H30: 0.02 | I30: 14.11
C31: Масло сливочное | D31: 3 | E31: 3 | F31: 0.01 | G31: 2.35 | H31: 0.01 | I31: 22.02
C32: Морковь | D32: 10 | E32: 8 | F32: 0.02 | G32: - | H32: 0.58 | I32: 2.70
F33: =SUM(F26:F32) -> 40.63 | G33: =SUM(G26:G32) -> 4.56 | H33: =SUM(H26:H32) -> 15.29 | I33: =SUM(I26:I32) -> 191.53
A34: Картофельное пюре с котлетой | B34: 150/80 | C34: Картофель | D34: 200 | E34: 140 | F34: 2.52 | G34: 0.55 | H34: 22.82 | I34: 112.00
C35: Масло сливочное | D35: 5 | E35: 5 | F35: 0.01 | G35: 3.14 | H35: 0.02 | I35: 29.36
C36: Мясо | D36: 100 | E36: 100 | F36: 23 | G36: 13.3 | H36: 0.1 | I36: 218.00
C37: Лук репчатый | D37: 10 | E37: 8 | F37: 0.11 | G37: - | H37: 0.73 | I37: 3.30
C38: Хлеб ржаной (пшеничный) | D38: 10 | E38: 10 | F38: 0.52 | G38: 0.12 | H38: =17.7/4 -> 4.43 | I38: =85.6/4 -> 21.40
C39: Масло растительное | D39: 10 | E39: 10 | F39: - | G39: =3.75*2.5 -> 9.38 | H39: - | I39: =34.92*2.5 -> 87.30
F40: =SUM(F34:F39) -> 26.16 | G40: =SUM(G34:G39) -> 26.49 | H40: =SUM(H34:H39) -> 28.10 | I40: =SUM(I34:I39) -> 471.36
A41: Компот | B41: 200 | C41: Сухофрукты | D41: 10 | E41: 10 | F41: 0.44 | G41: - | H41: 0.62 | I41: 27.90
C42: Сахар | D42: 15 | E42: 15 | F42: - | G42: - | H42: 14.30 | I42: 58.50
F43: =SUM(F41:F42) -> 0.44 | G43: =SUM(G41:G42) -> 0.00 | H43: 14.92 | I43: 86.40
A44: Хлеб ржаной (пшеничный) | B44: 40 | C44: Хлеб ржаной (пшеничный) | D44: 40 | E44: 40 | F44: 2.08 | G44: 0.48 | H44: 17.70 | I44: 85.60
A45: ИТОГО | F45: =F25+F33+F40+F43+F44 -> 69.85 | G45: =G25+G33+G40+G43+G44 -> 35.33 | H45: =H25+H33+H40+H43+H44 -> 82.74 | I45: =I25+I33+I40+I43+I44 -> 899.21
A46: ПОЛДНИК
A47: Оладьи | B47: 80 | C47: Мука пшеничная | D47: 40 | E47: 40 | F47: 4.00 | G47: 0.50 | H47: 28.40 | I47: 134.00
C48: Яйцо 1/5 шт | D48: 8 | E48: 6.92 | F48: 1.28 | G48: 2.06 | H48: 0.02 | I48: 23.00
C49: Молоко | D49: 40 | E49: 40 | F49: 1.12 | G49: 1.28 | H49: 1.88 | I49: 23.20
C50: Сахар | D50: 3 | E50: 3 | F50: - | G50: - | H50: 2.99 | I50: 11.40
C51: Масло растительное | D51: 3 | E51: 3 | F51: - | G51: 2.81 | H51: - | I51: 26.19
C52: Масло сливочное | D52: 3 | E52: 3 | F52: 0.01 | G52: 2.35 | H52: 0.01 | I52: 22.02
C53: Дрожжи | D53: 1.5 | E53: 1.5 | F53: 0.19 | G53: 0.04 | H53: - | I53: -
A54: Яблоко | B54: 100 | C54: Яблоко | D54: 100 | E54: 80 | F54: 1.50 | G54: 0.10 | H54: 21.80 | I54: 89.00
F55: =SUM(F54:F54) -> 1.50 | G55: =SUM(G54:G54) -> 0.10 | H55: =SUM(H54:H54) -> 21.80 | I55: =SUM(I54:I54) -> 89.00
A56: Чай сладкий | B56: 200 | C56: Чай | D56: 0.71 | E56: 0.71 | F56: 0.16 | G56: - | H56: 0.02 | I56: -
C57: Сахар | D57: 15 | E57: 15 | F57: - | G57: - | H57: 14.30 | I57: 58.50
F58: =SUM(F56:F57) -> 0.16 | G58: =SUM(G56:G57) -> 0.00 | H58: =SUM(H56:H57) -> 14.32 | I58: =SUM(I56:I57) -> 58.50
A59: ИТОГО | F59: =F54+F58+F52 -> 1.67 | G59: =G54+G58+G52 -> 2.45 | H59: 36.13 | I59: 169.52
A60: ИТОГО ЗА ДЕНЬ | F60: =SUM(F21+F49+F59,F23) -> 2.79 | G60: =SUM(G21+G49+G59,G23) -> 3.73 | H60: =SUM(H21+H49+H59,H23) -> 40.01 | I60: =SUM(I21+I49+I59,I23) -> 200.32

Sheet 12 день
A1: 12-ый день
A2: для детей от 2 до 7 лет
A4: Меню | B4: Выход | C4: Продукты | D4: Брутто | E4: Нетто | F4: Б | G4: Ж | H4: У | I4: Энергет.ценность
A5: ЗАВТРАК
A6: Каша манная | B6: 250 | C6: Манка | D6: 20 | E6: 20 | F6: =1.42/3*4 -> 1.89 | G6: =10.51/3*4 -> 14.01 | H6: - | I6: =49.95/3*4 -> 66.60
C7: Молоко | D7: 200 | E7: 200 | F7: 5.60 | G7: 6.40 | H7: 5.40 | I7: 118.00
C8: Сахар | D8: 5 | E8: 5 | F8: - | G8: - | H8: =2.5*1.91 -> 4.78 | I8: =2.5*7.8 -> 19.50
C9: Масло сливочное | D9: 5 | E9: 5 | F9: 0.02 | G9: 3.92 | H9: 0.02 | I9: 36.70
F10: =SUM(F6:F9) -> 7.51 | G10: =SUM(G6:G9) -> 24.33 | H10: 10.20 | I10: 240.80
A11: Хлеб с сыром с маслом | B11: 40/6 | C11: Хлеб ржаной (пшеничный) | D11: 40 | E11: 40 | F11: 2.84 | G11: 0.44 | H11: 18.50 | I11: 91.60
C12: Сыр | D12: 6 | E12: 6 | F12: 1.30 | G12: 1.35 | H12: - | I12: 17.35
C13: Масло сливочное | D13: 5 | E13: 5 | F13: 0.01 | G13: 3.14 | H13: 0.02 | I13: 29.36
F14: =SUM(F11:F13) -> 4.15 | G14: =SUM(G11:G13) -> 4.93 | H14: 18.52 | I14: 138.31
A15: Чай сладкий | B15: 200 | C15: Чай | D15: 0.6 | E15: 0.6 | F15: 0.16 | G15: - | H15: 0.02 | I15: -
C16: Сахар | D16: 15 | E16: 15 | F16: - | G16: - | H16: 14.30 | I16: 58.50
F17: =SUM(F15:F16) -> 0.16 | G17: =SUM(G15:G16) -> 0.00 | H17: 14.32 | I17: 58.50
A18: ИТОГО | F18: =F10+F14+F17 -> 11.82 | G18: =G10+G14+G17 -> 29.26 | H18: 43.04 | I18: 437.61
A19: 2-ой ЗАВТРАК
A20: Сок (фрукты) | B20: 200/115 | C20: Сок (фрукты) | D20: 200/115 | E20: 200/115 | F20: - | G20: - | H20: 12.00 | I20: 48.00
A21: ОБЕД
A22: Салат из зеленого горошка | B22: 60 | C22: Зеленый горошек | D22: 50 | E22: 50 | F22: 2.10 | G22: - | H22: 6.35 | I22: 34.50
C23: Огурец соленый | D23: 30.00 | E23: 30.00 | F23: 0.20 | G23: - | H23: 0.35 | I23: 2.33
C24: Лук репчатый | D24: 10 | E24: 8 | F24: 0.11 | G24: - | H24: 0.73 | I24: 3.30
C25: Масло растительное | D25: 4 | E25: 4 | F25: - | G25: 3.75 | H25: - | I25: 34.92
F26: =SUM(F22:F25) -> 2.41 | G26: =SUM(G22:G25) -> 3.75 | H26: =SUM(H22:H25) -> 7.43 | I26: =SUM(I22:I25) -> 75.05
A27: Суп вермишелевый | B27: 200 | C27: Мясо | D27: 69 | E27: 69 | F27: 9.73 | G27: 3.38 | H27: - | I27: 69.59
C28: Картофель | D28: 200 | E28: 180 | F28: =4*0.63 -> 2.52 | G28: =4*0.14 -> 0.56 | H28: =4*5.71 -> 22.84 | I28: =4*28 -> 112.00
C29: Лук репчатый | D29: 10 | E29: 8 | F29: 0.11 | G29: - | H29: 0.73 | I29: 3.30
C30: Вермишель | D30: 15 | E30: 15 | F30: 1.6 | G30: 0.17 | H30: 17.18 | I30: 55.34
C31: Масло сливочное | D31: 2 | E31: 2 | F31: 0.01 | G31: 1.57 | H31: 0.01 | I31: 14.68
C32: Морковь | D32: 10 | E32: 8 | F32: 0.02 | G32: - | H32: 0.58 | I32: 2.70
F33: =SUM(F27:F32) -> 13.99 | G33: =SUM(G27:G32) -> 5.68 | H33: =SUM(H27:H32) -> 41.34 | I33: =SUM(I27:I32) -> 257.61
A34: Гречка с сосиской | B34: 150/40 | C34: Гречка | D34: 30 | E34: 30 | F34: 3.15 | G34: 0.69 | H34: 19.08 | I34: 97.50
C35: Масло сливочное | D35: 4 | E35: 4 | F35: 0.02 | G35: 3.14 | H35: 0.02 | I35: 29.36
C36: Масло растительное | D36: 5 | E36: 5 | F36: - | G36: 4.69 | H36: - | I36: 43.65
C37: Морковь | D37: 10 | E37: 8 | F37: 0.02 | G37: - | H37: 0.58 | I37: 2.70
C38: Лук репчатый | D38: 10 | E38: 8 | F38: 0.11 | G38: - | H38: 0.73 | I38: 3.30
C39: Сосиски | D39: 40 | E39: 40 | F39: 10.30 | G39: 17.90 | H39: 0.40 | I39: 200.00
F40: =SUM(F34:F39) -> 13.60 | G40: =SUM(G34:G39) -> 26.42 | H40: =SUM(H34:H39) -> 20.81 | I40: =SUM(I34:I39) -> 376.51
A41: Компот | B41: 200 | C41: Сухофрукты | D41: 10 | E41: 10 | F41: 0.44 | G41: - | H41: 0.62 | I41: 27.90
C42: Сахар | D42: 15 | E42: 15 | F42: - | G42: - | H42: 14.30 | I42: 58.50
F43: =SUM(F41:F42) -> 0.44 | G43: =SUM(G41:G42) -> 0.00 | H43: 14.92 | I43: 86.40
A44: Хлеб ржаной (пшеничный) | B44: 40 | C44: Хлеб ржаной (пшеничный) | D44: 40 | E44: 40 | F44: 2.08 | G44: 0.48 | H44: 17.70 | I44: 85.60
A45: ИТОГО | F45: =F26+F33+F40+F43+F44 -> 32.52 | G45: =G26+G33+G40+G43+G44 -> 36.33 | H45: =H26+H33+H40+H43+H44 -> 102.20 | I45: =I26+I33+I40+I43+I44 -> 881.17
A46: ПОЛДНИК
A47: Банан | B47: 100 | C47: Банан | D47: 100 | E47: 80 | F47: 1.50 | G47: 0.10 | H47: 21.80 | I47: 89.00
F48: =SUM(F47) -> 1.50 | G48: =SUM(G47) -> 0.10 | H48: 21.80 | I48: 89.00
A49: Вафли (печенье, пряники) | B49: 20 | C49: Вафли (печенье, пряники) | D49: 20 | E49: 20 | F49: 1.57 | G49: 1.92 | H49: 11.03 | I49: 66.81
F50: =SUM(F49:F49) -> 1.57 | G50: =SUM(G49:G49) -> 1.92 | H50: =SUM(H49:H49) -> 11.03 | I50: =SUM(I49:I49) -> 66.81
A51: Какао с молоком | B51: 200 | C51: Какао | D51: 1.07 | E51: 1.07 | F51: 0.26 | G51: 0.18 | H51: 0.26 | I51: 4.07
C52: Молоко | D52: 100 | E52: 100 | F52: 2.80 | G52: 3.20 | H52: 4.70 | I52: 59.00
C53: Сахар | D53: 12 | E53: 12 | F53: - | G53: - | H53: 11.40 | I53: 46.80
F54: =SUM(F51:F53) -> 3.06 | G54: =SUM(G51:G53) -> 3.38 | H54: 16.36 | I54: 109.87
A55: ИТОГО | F55: =F50+F54+F48 -> 6.13 | G55: =G50+G54+G48 -> 5.40 | H55: 49.19 | I55: 265.68
A56: ИТОГО ЗА ДЕНЬ | F56: =SUM(F18+F45+F55,F20) -> 50.47 | G56: =SUM(G18+G45+G55,G20) -> 70.99 | H56: =SUM(H18+H45+H55,H20) -> 206.43 | I56: =SUM(I18+I45+I55,I20) -> 1632.46
